Workbook

Sheet PLANILHA ORÇAMENTÁRIA
A1: Planilha de Orçamento | K1: 1.2358
K2: 1.2358
A3: OBRA : Pórtico de Acesso ao Centro Esportivo | K3: 1.2358
A4: ENDEREÇO: Avenida Cerro Largo, Centro de Tunápolis - SC | K4: 1.2358
A5: RESPONSAVEL TÉCNICO (A): Indianara Follmann | K5: 1.2358
K6: 1.2358
K7: 1.2358
A8: ITEM | B8: TABELA | C8: REFERENCIA | D8: DESCRIÇÃO DO SERVIÇO | E8: UND | F8: QTDE | G8: V.UNIT | H8: VALOR TOTAL | I8: VALOR TOTAL COM BDI | J8: OBSERVAÇÕES | K8: 1.2358
A9: 1 | B9: SERVIÇOS PRELIMINARES | I9: =SUM(I10:I12) -> 1056.164112 | K9: 1.2358
A10: 1.1 | B10: SINAPI | C10: 4813 | D10: PLACA DE OBRA EM CHAPA GALVANIZADA ADESIVADA, DE *2,4 X 1,2* M | E10: =IF(IF(ISERROR(VLOOKUP(C10&"",'BANCO DE DADOS'!A:D,2,0)),"",VLOOKUP(C10&"",'BANCO DE DADOS'!A:D,3,0))=0,"",IF(ISERROR(VLOOKUP(C10&"",'BANCO DE DADOS'!A:D,2,0)),"",VLOOKUP(C10&"",'BANCO DE DADOS'!A:D,3,0))) -> M2 | F10: 2 | G10: =IF(IF(ISERROR(VLOOKUP(C10&"",'BANCO DE DADOS'!A:D,2,0)),"",VLOOKUP(C10&"",'BANCO DE DADOS'!A:D,4,0))=0,"",IF(ISERROR(VLOOKUP(C10&"",'BANCO DE DADOS'!A:D,2,0)),"",VLOOKUP(C10&"",'BANCO DE DADOS'!A:D,4,0))) -> 225,00 | H10: =F10*G10 -> 450 | I10: =K1*H10 -> 556.11 | K10: 1.2358
A11: 1.2 | B11: CREA-SC)CAU | D11: ART OU RRT DE EXECUÇÃO DE OBRA | E11: UN | F11: 1 | G11: 233.94 | H11: =F11*G11 -> 233.94 | I11: =K2*H11 -> 289.103052 | K11: 1.2358
A12: 1.3 | B12: SIE/SC | C12: 42591 | D12: LOCAÇÃO DA OBRA | E12: M2 | F12: 30 | G12: 5.69 | H12: 170.7 | I12: =K3*H12 -> 210.95106 | K12: 1.2358
K13: 1.2358
A14: 2 | B14: FUNDAÇÕES ( Sapatas e pilares de arranque) | I14: =SUM(I15:I23) -> 3585.492235 | K14: 1.2358
A15: 2.1 | B15: SINAPI | C15: 96521 | D15: ESCAVAÇÃO MECANIZADA PARA BLOCO DE COROAMENTO OU SAPATA COM RETROESCAVADEIRA (INCLUINDO ESCAVAÇÃO PARA CLOCAÇÃO DE FÔRMAS). | E15: =IF(IF(ISERROR(VLOOKUP(C15&"",'BANCO DE DADOS'!A:D,2,0)),"",VLOOKUP(C15&"",'BANCO DE DADOS'!A:D,3,0))=0,"",IF(ISERROR(VLOOKUP(C15&"",'BANCO DE DADOS'!A:D,2,0)),"",VLOOKUP(C15&"",'BANCO DE DADOS'!A:D,3,0))) -> M3 | F15: =(0.38+0.35+0.31)+((1.6*1.4)*0.1) -> 1.264 | G15: 45.87 | H15: 57.97968 | I15: =K4*H15 -> 71.65128854 | J15: Escavação de baldrame, sapatas e vala para blocos do jardim | K15: 1.2358
A16: 2.2 | B16: SINAPI | C16: 96535 | D16: FABRICAÇÃO,MONTAGEM E DESMONTAGEM DE FÔRMA PARA SAPATA, EM MADEIRA SERRADA, E=25MM, 4 UTILIZAÇÕES | E16: =IF(IF(ISERROR(VLOOKUP(C16&"",'BANCO DE DADOS'!A:D,2,0)),"",VLOOKUP(C16&"",'BANCO DE DADOS'!A:D,3,0))=0,"",IF(ISERROR(VLOOKUP(C16&"",'BANCO DE DADOS'!A:D,2,0)),"",VLOOKUP(C16&"",'BANCO DE DADOS'!A:D,3,0))) -> M2 | F16: 6.5 | G16: 156.5 | H16: 1017.25 | I16: =K1*H16 -> 1257.11755 | K16: 1.2358
A17: 2.3 | B17: SINAPI | C17: 96622 | D17: LASTRO COM MATERIAL GRANULAR, APLICADO EM PISOS OU LAJES SOBRE SOLO, ESPESSURA DE ¨5 CM¨ | E17: =IF(IF(ISERROR(VLOOKUP(C17&"",'BANCO DE DADOS'!A:D,2,0)),"",VLOOKUP(C17&"",'BANCO DE DADOS'!A:D,3,0))=0,"",IF(ISERROR(VLOOKUP(C17&"",'BANCO DE DADOS'!A:D,2,0)),"",VLOOKUP(C17&"",'BANCO DE DADOS'!A:D,3,0))) -> M3 | F17: =F15 -> 1.264 | G17: 143.16 | H17: 180.95424 | I17: =K5*H17 -> 223.6232498 | K17: 1.2358
A18: 2.4 | B18: SINAPI | C18: 96558 | D18: CONCRETAGEM DE SAPATAS, FCK 30 MPA, COM USO DE BOMBA LANÇAMENTO, ADENSAMENTO E ACABAMENTO | E18: =IF(IF(ISERROR(VLOOKUP(C18&"",'BANCO DE DADOS'!A:D,2,0)),"",VLOOKUP(C18&"",'BANCO DE DADOS'!A:D,3,0))=0,"",IF(ISERROR(VLOOKUP(C18&"",'BANCO DE DADOS'!A:D,2,0)),"",VLOOKUP(C18&"",'BANCO DE DADOS'!A:D,3,0))) -> M3 | F18: =F15 -> 1.264 | G18: 637.85 | H18: 806.2424 | I18: =K6*H18 -> 996.3543579 | K18: 1.2358
A19: 2.5 | B19: SINAPI | C19: 96545 | D19: ARMAÇÃO DE BLOCO, VIGA BALDRAME OU SAPATA UTILIZANDO AÇO CA-50 DE 8MM- MONTAGEM | E19: =IF(IF(ISERROR(VLOOKUP(C19&"",'BANCO DE DADOS'!A:D,2,0)),"",VLOOKUP(C19&"",'BANCO DE DADOS'!A:D,3,0))=0,"",IF(ISERROR(VLOOKUP(C19&"",'BANCO DE DADOS'!A:D,2,0)),"",VLOOKUP(C19&"",'BANCO DE DADOS'!A:D,3,0))) -> KG | F19: 13.2 | G19: 16.83 | H19: 222.156 | I19: 274.5403848 | K19: 1.2358
A20: 2.6 | B20: SINAPI | C20: 96546 | D20: ARMAÇÃO DE BLOCO, VIGA BALDRAME OU SAPATA UTILIZANDO AÇO CA-50 DE 10 MM- MONTAGEM | E20: =IF(IF(ISERROR(VLOOKUP(C20&"",'BANCO DE DADOS'!A:D,2,0)),"",VLOOKUP(C20&"",'BANCO DE DADOS'!A:D,3,0))=0,"",IF(ISERROR(VLOOKUP(C20&"",'BANCO DE DADOS'!A:D,2,0)),"",VLOOKUP(C20&"",'BANCO DE DADOS'!A:D,3,0))) -> KG | F20: 21.9 | G20: 14.95 | H20: 327.405 | I20: =K8*H20 -> 404.607099 | K20: 1.2358
A21: 2.7 | B21: SINAPI | C21: 96543 | D21: ARMAÇÃO DE BLOCO, VIGA BALDRAME E SAPATA UTILIZANDO AÇO CA-60 DE 5MM - MONTAGEM | E21: =IF(IF(ISERROR(VLOOKUP(C21&"",'BANCO DE DADOS'!A:D,2,0)),"",VLOOKUP(C21&"",'BANCO DE DADOS'!A:D,3,0))=0,"",IF(ISERROR(VLOOKUP(C21&"",'BANCO DE DADOS'!A:D,2,0)),"",VLOOKUP(C21&"",'BANCO DE DADOS'!A:D,3,0))) -> KG | F21: 11.7 | G21: 19.54 | H21: 228.618 | I21: =K11*H21 -> 282.5261244 | K21: 1.2358
A22: 2.8 | B22: SINAPI | C22: 96995 | D22: REATERRO MANUAL APILOADO COM SOQUETE | E22: =IF(IF(ISERROR(VLOOKUP(C22&"",'BANCO DE DADOS'!A:D,2,0)),"",VLOOKUP(C22&"",'BANCO DE DADOS'!A:D,3,0))=0,"",IF(ISERROR(VLOOKUP(C22&"",'BANCO DE DADOS'!A:D,2,0)),"",VLOOKUP(C22&"",'BANCO DE DADOS'!A:D,3,0))) -> M3 | F22: =F15 -> 1.264 | G22: 48.06 | H22: 60.74784 | I22: =K12*H22 -> 75.07218067 | K22: 1.2358
K23: 1.2358
A24: 3 | B24: ESTRUTURA | I24: =SUM(I26:I41) -> 6221.529316 | K24: 1.2358
B25: VIGAS BALDRAME | K25: 1.2358
A26: 3.1 | B26: SINAPI | C26: 96527 | D26: =IF(IF(ISERROR(D27:D36PROCV(C26&"",'BANCO DE DADOS'!A:D,2,0)),"",VLOOKUP(C26&"",'BANCO DE DADOS'!A:D,2,0))=0,"",IF(ISERROR(VLOOKUP(C26&"",'BANCO DE DADOS'!A:D,2,0)),"",VLOOKUP(C26&"",'BANCO DE DADOS'!A:D,2,0))) -> ESCAVAÇÃO MANUAL DE VALA PARA VIGA BALDRAME (INCLUINDO ESCAVAÇÃO PARA COLOCAÇÃO DE FÔRMAS). AF_06/2017 | E26: =IF(IF(ISERROR(VLOOKUP(C26&"",'BANCO DE DADOS'!A:D,2,0)),"",VLOOKUP(C26&"",'BANCO DE DADOS'!A:D,3,0))=0,"",IF(ISERROR(VLOOKUP(C26&"",'BANCO DE DADOS'!A:D,2,0)),"",VLOOKUP(C26&"",'BANCO DE DADOS'!A:D,3,0))) -> M3 | F26: =((0.15*0.4)*4) -> 0.24 | G26: 124.76 | H26: 29.9424 | I26: =K16*H26 -> 37.00281792 | K26: 1.2358
A27: 3.2 | B27: SINAPI | C27: 96542 | D27: =IF(IF(ISERROR(VLOOKUP(C27&"",'BANCO DE DADOS'!A:D,2,0)),"",VLOOKUP(C27&"",'BANCO DE DADOS'!A:D,2,0))=0,"",IF(ISERROR(VLOOKUP(C27&"",'BANCO DE DADOS'!A:D,2,0)),"",VLOOKUP(C27&"",'BANCO DE DADOS'!A:D,2,0))) -> FABRICAÇÃO, MONTAGEM E DESMONTAGEM DE FÔRMA PARA VIGA BALDRAME, EM CHAPA DE MADEIRA COMPENSADA RESINADA, E=17 MM, 4 UTILIZAÇÕES. AF_06/2017 | E27: =IF(IF(ISERROR(VLOOKUP(C27&"",'BANCO DE DADOS'!A:D,2,0)),"",VLOOKUP(C27&"",'BANCO DE DADOS'!A:D,3,0))=0,"",IF(ISERROR(VLOOKUP(C27&"",'BANCO DE DADOS'!A:D,2,0)),"",VLOOKUP(C27&"",'BANCO DE DADOS'!A:D,3,0))) -> M2 | F27: 4.85 | G27: 103.57 | H27: 502.3145 | I27: =K17*H27 -> 620.7602591 | K27: 1.2358
A28: 3.3 | B28: SINAPI | C28: 96545 | D28: =IF(IF(ISERROR(VLOOKUP(C28&"",'BANCO DE DADOS'!A:D,2,0)),"",VLOOKUP(C28&"",'BANCO DE DADOS'!A:D,2,0))=0,"",IF(ISERROR(VLOOKUP(C28&"",'BANCO DE DADOS'!A:D,2,0)),"",VLOOKUP(C28&"",'BANCO DE DADOS'!A:D,2,0))) -> ARMAÇÃO DE BLOCO, VIGA BALDRAME OU SAPATA UTILIZANDO AÇO CA-50 DE 8 MM - MONTAGEM. AF_06/2017 | E28: =IF(IF(ISERROR(VLOOKUP(C28&"",'BANCO DE DADOS'!A:D,2,0)),"",VLOOKUP(C28&"",'BANCO DE DADOS'!A:D,3,0))=0,"",IF(ISERROR(VLOOKUP(C28&"",'BANCO DE DADOS'!A:D,2,0)),"",VLOOKUP(C28&"",'BANCO DE DADOS'!A:D,3,0))) -> KG | F28: 15.4 | G28: 16.83 | H28: 259.182 | I28: =K18*H28 -> 320.2971156 | K28: 1.2358
A29: 3.4 | B29: SINAPI | C29: 96543 | D29: =IF(IF(ISERROR(VLOOKUP(C29&"",'BANCO DE DADOS'!A:D,2,0)),"",VLOOKUP(C29&"",'BANCO DE DADOS'!A:D,2,0))=0,"",IF(ISERROR(VLOOKUP(C29&"",'BANCO DE DADOS'!A:D,2,0)),"",VLOOKUP(C29&"",'BANCO DE DADOS'!A:D,2,0))) -> ARMAÇÃO DE BLOCO, VIGA BALDRAME E SAPATA UTILIZANDO AÇO CA-60 DE 5 MM - MONTAGEM. AF_06/2017 | E29: =IF(IF(ISERROR(VLOOKUP(C29&"",'BANCO DE DADOS'!A:D,2,0)),"",VLOOKUP(C29&"",'BANCO DE DADOS'!A:D,3,0))=0,"",IF(ISERROR(VLOOKUP(C29&"",'BANCO DE DADOS'!A:D,2,0)),"",VLOOKUP(C29&"",'BANCO DE DADOS'!A:D,3,0))) -> KG | F29: 4.3 | G29: 19.54 | H29: 84.022 | I29: =K20*H29 -> 103.8343876 | K29: 1.2358
A30: 3.5 | B30: SINAPI | C30: 96557 | D30: =IF(IF(ISERROR(VLOOKUP(C30&"",'BANCO DE DADOS'!A:D,2,0)),"",VLOOKUP(C30&"",'BANCO DE DADOS'!A:D,2,0))=0,"",IF(ISERROR(VLOOKUP(C30&"",'BANCO DE DADOS'!A:D,2,0)),"",VLOOKUP(C30&"",'BANCO DE DADOS'!A:D,2,0))) -> CONCRETAGEM DE BLOCOS DE COROAMENTO E VIGAS BALDRAMES, FCK 30 MPA, COM USO DE BOMBA  LANÇAMENTO, ADENSAMENTO E ACABAMENTO. AF_06/2017 | E30: =IF(IF(ISERROR(VLOOKUP(C30&"",'BANCO DE DADOS'!A:D,2,0)),"",VLOOKUP(C30&"",'BANCO DE DADOS'!A:D,3,0))=0,"",IF(ISERROR(VLOOKUP(C30&"",'BANCO DE DADOS'!A:D,2,0)),"",VLOOKUP(C30&"",'BANCO DE DADOS'!A:D,3,0))) -> M3 | F30: 0.31 | G30: 630.15 | H30: 195.3465 | I30: =H30*K30 -> 241.4092047 | K30: 1.2358
A31: 3.6 | B31: SINAPI | C31: 98557 | D31: =IF(IF(ISERROR(VLOOKUP(C31&"",'BANCO DE DADOS'!A:D,2,0)),"",VLOOKUP(C31&"",'BANCO DE DADOS'!A:D,2,0))=0,"",IF(ISERROR(VLOOKUP(C31&"",'BANCO DE DADOS'!A:D,2,0)),"",VLOOKUP(C31&"",'BANCO DE DADOS'!A:D,2,0))) -> IMPERMEABILIZAÇÃO DE SUPERFÍCIE COM EMULSÃO ASFÁLTICA, 2 DEMÃOS AF_06/2018 | E31: =IF(IF(ISERROR(VLOOKUP(C31&"",'BANCO DE DADOS'!A:D,2,0)),"",VLOOKUP(C31&"",'BANCO DE DADOS'!A:D,3,0))=0,"",IF(ISERROR(VLOOKUP(C31&"",'BANCO DE DADOS'!A:D,2,0)),"",VLOOKUP(C31&"",'BANCO DE DADOS'!A:D,3,0))) -> M2 | F31: =((0.15+0.15+0.15)*4) -> 1.8 | G31: 39.76 | H31: 71.568 | I31: =K1*H31 -> 88.4437344 | K31: 1.2358
B32: PILARES | K32: 1.2358
A33: 3.7 | B33: SINAPI | C33: 92413 | D33: =IF(IF(ISERROR(VLOOKUP(C33&"",'BANCO DE DADOS'!A:D,2,0)),"",VLOOKUP(C33&"",'BANCO DE DADOS'!A:D,2,0))=0,"",IF(ISERROR(VLOOKUP(C33&"",'BANCO DE DADOS'!A:D,2,0)),"",VLOOKUP(C33&"",'BANCO DE DADOS'!A:D,2,0))) -> MONTAGEM E DESMONTAGEM DE FÔRMA DE PILARES RETANGULARES E ESTRUTURAS SIMILARES, PÉ-DIREITO SIMPLES, EM MADEIRA SERRADA, 4 UTILIZAÇÕES. AF_09/2020 | E33: =IF(IF(ISERROR(VLOOKUP(C33&"",'BANCO DE DADOS'!A:D,2,0)),"",VLOOKUP(C33&"",'BANCO DE DADOS'!A:D,3,0))=0,"",IF(ISERROR(VLOOKUP(C33&"",'BANCO DE DADOS'!A:D,2,0)),"",VLOOKUP(C33&"",'BANCO DE DADOS'!A:D,3,0))) -> M2 | F33: =0.76+11.4 -> 12.16 | G33: 128.7 | H33: 1564.992 | I33: =K22*H33 -> 1934.017114 | K33: 1.2358
A34: 3.8 | B34: SINAPI | C34: 92762 | D34: =IF(IF(ISERROR(VLOOKUP(C34&"",'BANCO DE DADOS'!A:D,2,0)),"",VLOOKUP(C34&"",'BANCO DE DADOS'!A:D,2,0))=0,"",IF(ISERROR(VLOOKUP(C34&"",'BANCO DE DADOS'!A:D,2,0)),"",VLOOKUP(C34&"",'BANCO DE DADOS'!A:D,2,0))) -> ARMAÇÃO DE PILAR OU VIGA DE UMA ESTRUTURA CONVENCIONAL DE CONCRETO ARMADO EM UM EDIFÍCIO DE MÚLTIPLOS PAVIMENTOS UTILIZANDO AÇO CA-50 DE 10,0 MM - MONTAGEM. AF_12/2015 | E34: =IF(IF(ISERROR(VLOOKUP(C34&"",'BANCO DE DADOS'!A:D,2,0)),"",VLOOKUP(C34&"",'BANCO DE DADOS'!A:D,3,0))=0,"",IF(ISERROR(VLOOKUP(C34&"",'BANCO DE DADOS'!A:D,2,0)),"",VLOOKUP(C34&"",'BANCO DE DADOS'!A:D,3,0))) -> KG | F34: =2+34.5 -> 36.5 | G34: 13.09 | H34: 477.785 | I34: =K24*H34 -> 590.446703 | K34: 1.2358
A35: 3.9 | B35: SINAPI | C35: 92759 | D35: =IF(IF(ISERROR(VLOOKUP(C35&"",'BANCO DE DADOS'!A:D,2,0)),"",VLOOKUP(C35&"",'BANCO DE DADOS'!A:D,2,0))=0,"",IF(ISERROR(VLOOKUP(C35&"",'BANCO DE DADOS'!A:D,2,0)),"",VLOOKUP(C35&"",'BANCO DE DADOS'!A:D,2,0))) -> ARMAÇÃO DE PILAR OU VIGA DE UMA ESTRUTURA CONVENCIONAL DE CONCRETO ARMADO EM UM EDIFÍCIO DE MÚLTIPLOS PAVIMENTOS UTILIZANDO AÇO CA-60 DE 5,0 MM - MONTAGEM. AF_12/2015 | E35: =IF(IF(ISERROR(VLOOKUP(C35&"",'BANCO DE DADOS'!A:D,2,0)),"",VLOOKUP(C35&"",'BANCO DE DADOS'!A:D,3,0))=0,"",IF(ISERROR(VLOOKUP(C35&"",'BANCO DE DADOS'!A:D,2,0)),"",VLOOKUP(C35&"",'BANCO DE DADOS'!A:D,3,0))) -> KG | F35: =21.3+1.6 -> 22.9 | G35: 15.99 | H35: 366.171 | I35: =K25*H35 -> 452.5141218 | K35: 1.2358
A36: 3.10 | B36: SINAPI | C36: 103672 | D36: =IF(IF(ISERROR(VLOOKUP(C36&"",'BANCO DE DADOS'!A:D,2,0)),"",VLOOKUP(C36&"",'BANCO DE DADOS'!A:D,2,0))=0,"",IF(ISERROR(VLOOKUP(C36&"",'BANCO DE DADOS'!A:D,2,0)),"",VLOOKUP(C36&"",'BANCO DE DADOS'!A:D,2,0))) -> CONCRETAGEM DE PILARES, FCK = 25 MPA, COM USO DE BOMBA - LANÇAMENTO, ADENSAMENTO E ACABAMENTO. AF_02/2022 | E36: =IF(IF(ISERROR(VLOOKUP(C36&"",'BANCO DE DADOS'!A:D,2,0)),"",VLOOKUP(C36&"",'BANCO DE DADOS'!A:D,3,0))=0,"",IF(ISERROR(VLOOKUP(C36&"",'BANCO DE DADOS'!A:D,2,0)),"",VLOOKUP(C36&"",'BANCO DE DADOS'!A:D,3,0))) -> M3 | F36: =0.9+0.06 -> 0.96 | G36: 606.45 | H36: 582.192 | I36: =K26*H36 -> 719.4728736 | K36: 1.2358
B37: VIGAS DE COBERTURA | K37: 1.2358
A38: 3.11 | B38: SINAPI | C38: 92265 | D38: =IF(IF(ISERROR(VLOOKUP(C38&"",'BANCO DE DADOS'!A:D,2,0)),"",VLOOKUP(C38&"",'BANCO DE DADOS'!A:D,2,0))=0,"",IF(ISERROR(VLOOKUP(C38&"",'BANCO DE DADOS'!A:D,2,0)),"",VLOOKUP(C38&"",'BANCO DE DADOS'!A:D,2,0))) -> FABRICAÇÃO DE FÔRMA PARA VIGAS, EM CHAPA DE MADEIRA COMPENSADA RESINADA, E = 17 MM. AF_09/2020 | E38: =IF(IF(ISERROR(VLOOKUP(C38&"",'BANCO DE DADOS'!A:D,2,0)),"",VLOOKUP(C38&"",'BANCO DE DADOS'!A:D,3,0))=0,"",IF(ISERROR(VLOOKUP(C38&"",'BANCO DE DADOS'!A:D,2,0)),"",VLOOKUP(C38&"",'BANCO DE DADOS'!A:D,3,0))) -> M2 | F38: 3.8 | G38: 146.74 | H38: 557.612 | I38: =K28*H38 -> 689.0969096 | K38: 1.2358
A39: 3.12 | B39: SINAPI | C39: 92761 | D39: =IF(IF(ISERROR(VLOOKUP(C39&"",'BANCO DE DADOS'!A:D,2,0)),"",VLOOKUP(C39&"",'BANCO DE DADOS'!A:D,2,0))=0,"",IF(ISERROR(VLOOKUP(C39&"",'BANCO DE DADOS'!A:D,2,0)),"",VLOOKUP(C39&"",'BANCO DE DADOS'!A:D,2,0))) -> ARMAÇÃO DE PILAR OU VIGA DE UMA ESTRUTURA CONVENCIONAL DE CONCRETO ARMADO EM UM EDIFÍCIO DE MÚLTIPLOS PAVIMENTOS UTILIZANDO AÇO CA-50 DE 8,0 MM - MONTAGEM. AF_12/2015 | E39: =IF(IF(ISERROR(VLOOKUP(C39&"",'BANCO DE DADOS'!A:D,2,0)),"",VLOOKUP(C39&"",'BANCO DE DADOS'!A:D,3,0))=0,"",IF(ISERROR(VLOOKUP(C39&"",'BANCO DE DADOS'!A:D,2,0)),"",VLOOKUP(C39&"",'BANCO DE DADOS'!A:D,3,0))) -> KG | F39: 9.6 | G39: 14.56 | H39: 139.776 | I39: =K1*H39 -> 172.7351808 | K39: 1.2358
A40: 3.13 | B40: SINAPI | C40: 92759 | D40: ARMAÇÃO DE PILAR OU VIGA DE ESTRUTURA CONVENCIONAL DE CONCRETO ARMADO UTILIZANDO AÇO CA-60 DE 5,0 MM - MONTAGEM. AF_06/2022 | E40: =IF(IF(ISERROR(VLOOKUP(C40&"",'BANCO DE DADOS'!A:D,2,0)),"",VLOOKUP(C40&"",'BANCO DE DADOS'!A:D,3,0))=0,"",IF(ISERROR(VLOOKUP(C40&"",'BANCO DE DADOS'!A:D,2,0)),"",VLOOKUP(C40&"",'BANCO DE DADOS'!A:D,3,0))) -> KG | F40: 3.3 | G40: 15.99 | H40: 52.767 | I40: =K31*H40 -> 65.2094586 | K40: 1.2358
A41: 3.14 | B41: SINAPI | C41: 103674 | D41: =IF(IF(ISERROR(VLOOKUP(C41&"",'BANCO DE DADOS'!A:D,2,0)),"",VLOOKUP(C41&"",'BANCO DE DADOS'!A:D,2,0))=0,"",IF(ISERROR(VLOOKUP(C41&"",'BANCO DE DADOS'!A:D,2,0)),"",VLOOKUP(C41&"",'BANCO DE DADOS'!A:D,2,0))) -> CONCRETAGEM DE VIGAS E LAJES, FCK=25 MPA, PARA LAJES PREMOLDADAS COM USO DE BOMBA - LANÇAMENTO, ADENSAMENTO E ACABAMENTO. AF_02/2022 | E41: =IF(IF(ISERROR(VLOOKUP(C41&"",'BANCO DE DADOS'!A:D,2,0)),"",VLOOKUP(C41&"",'BANCO DE DADOS'!A:D,3,0))=0,"",IF(ISERROR(VLOOKUP(C41&"",'BANCO DE DADOS'!A:D,2,0)),"",VLOOKUP(C41&"",'BANCO DE DADOS'!A:D,3,0))) -> M3 | F41: 0.24 | G41: 628.1 | H41: 150.744 | I41: =K32*H41 -> 186.2894352 | K41: 1.2358
A42: 4 | B42: VEDAÇÕES E REVESTIMENTOS | I42: =SUM(I43:I48) -> 2759.21416 | K42: 1.2358
A43: 4.1 | B43: SINAPI | C43: 103331 | D43: ALVENARIA DE VEDAÇÃO DE BLOCOS CERÂMICOS FURADOS NA HORIZONTAL DE 11,5 X19X19 CM (ESPESSURA 11,5 CM) E ARGAMASSA DE ASSENTAMENTO COM PREPAROMANUAL. AF_12/2021 | E43: M2 | F43: =((1.6+1.6+1.4+1.4)*0.2)+((0.8+0.8+1+1)*0.4) -> 2.64 | G43: 97.43 | H43: 257.2152 | I43: =K38*H43 -> 317.8665442 | J43: Bloco para execução do jardim, assentando com travamento nos cantos. | K43: 1.2358
A44: 4.2 | B44: SINAPI | C44: 98689 | D44: =IF(IF(ISERROR(VLOOKUP(C44&"",'BANCO DE DADOS'!A:D,2,0)),"",VLOOKUP(C44&"",'BANCO DE DADOS'!A:D,2,0))=0,"",IF(ISERROR(VLOOKUP(C44&"",'BANCO DE DADOS'!A:D,2,0)),"",VLOOKUP(C44&"",'BANCO DE DADOS'!A:D,2,0))) -> SOLEIRA EM GRANITO, LARGURA 15 CM, ESPESSURA 2,0 CM. AF_09/2020 | E44: =IF(IF(ISERROR(VLOOKUP(C44&"",'BANCO DE DADOS'!A:D,2,0)),"",VLOOKUP(C44&"",'BANCO DE DADOS'!A:D,3,0))=0,"",IF(ISERROR(VLOOKUP(C44&"",'BANCO DE DADOS'!A:D,2,0)),"",VLOOKUP(C44&"",'BANCO DE DADOS'!A:D,3,0))) -> M | F44: =(1.6+1.6+1.4+1.4)+(1+1+0.8+0.8) -> 9.6 | G44: 108.33 | H44: 1039.968 | I44: =K39*H44 -> 1285.192454 | J44: Soleiras colocadas no jardim para acamento em cima do bloco ceramico. | K44: 1.2358
B45: REVESTIMENTOS | K45: 1.2358
A46: 4.3 | B46: SINAPI | C46: 87879 | D46: =IF(IF(ISERROR(VLOOKUP(C46&"",'BANCO DE DADOS'!A:D,2,0)),"",VLOOKUP(C46&"",'BANCO DE DADOS'!A:D,2,0))=0,"",IF(ISERROR(VLOOKUP(C46&"",'BANCO DE DADOS'!A:D,2,0)),"",VLOOKUP(C46&"",'BANCO DE DADOS'!A:D,2,0))) -> CHAPISCO APLICADO EM ALVENARIAS E ESTRUTURAS DE CONCRETO INTERNAS, COM COLHER DE PEDREIRO. ARGAMASSA TRAÇO 1:3 COM PREPARO EM BETONEIRA 400L. AF_06/2014 | E46: =IF(IF(ISERROR(VLOOKUP(C46&"",'BANCO DE DADOS'!A:D,2,0)),"",VLOOKUP(C46&"",'BANCO DE DADOS'!A:D,3,0))=0,"",IF(ISERROR(VLOOKUP(C46&"",'BANCO DE DADOS'!A:D,2,0)),"",VLOOKUP(C46&"",'BANCO DE DADOS'!A:D,3,0))) -> M2 | F46: =(F43*2) +((0.75+0.75+0.2+0.2)*3)+((0.75+0.75+0.2+0.2)*3.4) -> 17.44 | G46: 4.36 | H46: 76.0384 | I46: =K42*H46 -> 93.96825472 | K46: 1.2358
A47: 4.4 | B47: SINAPI | C47: 87529 | D47: =IF(IF(ISERROR(VLOOKUP(C47&"",'BANCO DE DADOS'!A:D,2,0)),"",VLOOKUP(C47&"",'BANCO DE DADOS'!A:D,2,0))=0,"",IF(ISERROR(VLOOKUP(C47&"",'BANCO DE DADOS'!A:D,2,0)),"",VLOOKUP(C47&"",'BANCO DE DADOS'!A:D,2,0))) -> MASSA ÚNICA, PARA RECEBIMENTO DE PINTURA, EM ARGAMASSA TRAÇO 1:2:8, PREPARO MECÂNICO COM BETONEIRA 400L, APLICADA MANUALMENTE EM FACES INTERNAS DE PAREDES, ESPESSURA DE 20MM, COM EXECUÇÃO DE TALISCAS. AF_06/2014 | E47: =IF(IF(ISERROR(VLOOKUP(C47&"",'BANCO DE DADOS'!A:D,2,0)),"",VLOOKUP(C47&"",'BANCO DE DADOS'!A:D,3,0))=0,"",IF(ISERROR(VLOOKUP(C47&"",'BANCO DE DADOS'!A:D,2,0)),"",VLOOKUP(C47&"",'BANCO DE DADOS'!A:D,3,0))) -> M2 | F47: =F46 -> 17.44 | G47: 35.86 | H47: 625.3984 | I47: =K2*H47 -> 772.8673427 | K47: 1.2358
A48: 4.5 | B48: SINAPI | C48: 98562 | D48: =IF(IF(ISERROR(VLOOKUP(C48&"",'BANCO DE DADOS'!A:D,2,0)),"",VLOOKUP(C48&"",'BANCO DE DADOS'!A:D,2,0))=0,"",IF(ISERROR(VLOOKUP(C48&"",'BANCO DE DADOS'!A:D,2,0)),"",VLOOKUP(C48&"",'BANCO DE DADOS'!A:D,2,0))) -> IMPERMEABILIZAÇÃO DE FLOREIRA OU VIGA BALDRAME COM ARGAMASSA DE CIMENTO E AREIA, COM ADITIVO IMPERMEABILIZANTE, E = 2 CM. AF_06/2018 | E48: M2 | F48: =F43*2 -> 5.28 | G48: 44.34 | H48: 234.1152 | I48: =K3*H48 -> 289.3195642 | J48: Impermeabilização internas das floreiras, duas demão. | K48: 1.2358
K49: 1.2358
A50: 5 | B50: PINTURA | I50: =SUM(I51:I54) -> 685.7958406 | K50: 1.2358
B51: INTERNA | K51: 1.2358
A52: 5.1 | B52: SINAPI | C52: 102193 | D52: LIXAMENTO DE MADEIRA PARA APLICAÇÃO DE FUNDO OU PINTURA. AF_01/2021 | E52: M2 | F52: =F46*2 -> 34.88 | G52: 2.01 | H52: =F52*G52 -> 70.1088 | I52: =K48*H52 -> 86.64045504 | K52: 1.2358
A53: 5.2 | B53: SINAPI | C53: 88485 | D53: =IF(IF(ISERROR(VLOOKUP(C53&"",'BANCO DE DADOS'!A:D,2,0)),"",VLOOKUP(C53&"",'BANCO DE DADOS'!A:D,2,0))=0,"",IF(ISERROR(VLOOKUP(C53&"",'BANCO DE DADOS'!A:D,2,0)),"",VLOOKUP(C53&"",'BANCO DE DADOS'!A:D,2,0))) -> APLICAÇÃO DE FUNDO SELADOR ACRÍLICO EM PAREDES, UMA DEMÃO. AF_06/2014 | E53: =IF(IF(ISERROR(VLOOKUP(C53&"",'BANCO DE DADOS'!A:D,2,0)),"",VLOOKUP(C53&"",'BANCO DE DADOS'!A:D,3,0))=0,"",IF(ISERROR(VLOOKUP(C53&"",'BANCO DE DADOS'!A:D,2,0)),"",VLOOKUP(C53&"",'BANCO DE DADOS'!A:D,3,0))) -> M2 | F53: =F52 -> 34.88 | G53: 2.09 | H53: =F53*G53 -> 72.8992 | I53: =K49*H53 -> 90.08883136 | K53: 1.2358
A54: 5.3 | B54: SINAPI | C54: 88489 | D54: =IF(IF(ISERROR(VLOOKUP(C54&"",'BANCO DE DADOS'!A:D,2,0)),"",VLOOKUP(C54&"",'BANCO DE DADOS'!A:D,2,0))=0,"",IF(ISERROR(VLOOKUP(C54&"",'BANCO DE DADOS'!A:D,2,0)),"",VLOOKUP(C54&"",'BANCO DE DADOS'!A:D,2,0))) -> APLICAÇÃO MANUAL DE PINTURA COM TINTA LÁTEX ACRÍLICA EM PAREDES, DUAS DEMÃOS. AF_06/2014 | E54: =IF(IF(ISERROR(VLOOKUP(C54&"",'BANCO DE DADOS'!A:D,2,0)),"",VLOOKUP(C54&"",'BANCO DE DADOS'!A:D,3,0))=0,"",IF(ISERROR(VLOOKUP(C54&"",'BANCO DE DADOS'!A:D,2,0)),"",VLOOKUP(C54&"",'BANCO DE DADOS'!A:D,3,0))) -> M2 | F54: =F52 -> 34.88 | G54: 11.81 | H54: 411.9328 | I54: 509.0665542 | K54: 1.2358
A56: 6 | B56: PORTÃO | I56: =SUM(I57:I60) -> 9523.075294 | K56: 1.2358
A57: 6.1 | B57: DEINFRA | C57: 43681 | D57: Portao de ferro galvanizado | E57: M2 | F57: =2.8*4 -> 11.2 | G57: 574.21 | H57: =F57*G57 -> 6431.152 | I57: =H57*K6 -> 7947.617642 | J57: Portão de 2,80mx4,00 com fechaduras, dobradiças, instalado. | K57: 1.2358
A58: 6.2 | B58: SINAPI | C58: 100719 | D58: PINTURA COM TINTA ALQUÍDICA DE FUNDO (TIPO ZARCÃO) PULVERIZADA SOBRE PERFIL METÁLICO EXECUTADO EM FÁBRICA (POR DEMÃO). AF_01/2020_P | E58: M2 | F58: =F57 -> 11.2 | G58: 10.01 | H58: =F58*G58 -> 112.112 | I58: =H58*K6 -> 138.5480096 | K58: 1.2358
A59: 6.3 | B59: SINAPI | C59: 100744 | D59: PINTURA COM TINTA ALQUÍDICA DE ACABAMENTO (ESMALTE SINTÉTICO BRILHANTE) APLICADA A ROLO OU PINCEL SOBRE PERFIL METÁLICO EXECUTADO EM FÁBRICA(POR DEMÃO). AF_01/2020 | E59: M2 | F59: =(((0.8*2.1)*2)+(5.1*0.15)+(10.4*0.05))*24 -> 111.48 | G59: 10.43 | H59: =F59*G59 -> 1162.7364 | I59: =H59*K7 -> 1436.909643 | J59: Pintura na cor preta conforme projeto | K59: 1.2358
K60: 1.2358
A61: 7 | B61: INSTALAÇÕES ELÉTRICAS | I61: =SUM(I62:I67) -> 2234.301684 | K61: 1.2358
A62: 7.1 | B62: SINAPI | C62: 93653 | D62: =IF(IF(ISERROR(VLOOKUP(C62&"",'BANCO DE DADOS'!A:D,2,0)),"",VLOOKUP(C62&"",'BANCO DE DADOS'!A:D,2,0))=0,"",IF(ISERROR(VLOOKUP(C62&"",'BANCO DE DADOS'!A:D,2,0)),"",VLOOKUP(C62&"",'BANCO DE DADOS'!A:D,2,0))) -> DISJUNTOR MONOPOLAR TIPO DIN, CORRENTE NOMINAL DE 10A - FORNECIMENTO E INSTALAÇÃO. AF_10/2020 | E62: =IF(IF(ISERROR(VLOOKUP(C62&"",'BANCO DE DADOS'!A:D,2,0)),"",VLOOKUP(C62&"",'BANCO DE DADOS'!A:D,3,0))=0,"",IF(ISERROR(VLOOKUP(C62&"",'BANCO DE DADOS'!A:D,2,0)),"",VLOOKUP(C62&"",'BANCO DE DADOS'!A:D,3,0))) -> UN | F62: 1 | G62: 11.9 | H62: 11.9 | I62: =K2*H62 -> 14.70602 | K62: 1.2358
A63: 7.2 | B63: SINAPI | C63: 91846 | D63: ELETRODUTO FLEXÍVEL CORRUGADO, PVC, DN 32 MM (1"), PARA CIRCUITOS TERMINAIS, INSTALADO EM LAJE - FORNECIMENTO E INSTALAÇÃO. AF_12/2015 | E63: M | F63: 25 | G63: 11.37 | H63: =F63*G63 -> 284.25 | I63: =K5*H63 -> 351.27615 | J63: Eletroduto para passagem de cabeamento vindo de um local existente até o portico | K63: 1.2358
A64: 7.3 | B64: SINAPI | C64: 91924 | D64: =IF(IF(ISERROR(VLOOKUP(C64&"",'BANCO DE DADOS'!A:D,2,0)),"",VLOOKUP(C64&"",'BANCO DE DADOS'!A:D,2,0))=0,"",IF(ISERROR(VLOOKUP(C64&"",'BANCO DE DADOS'!A:D,2,0)),"",VLOOKUP(C64&"",'BANCO DE DADOS'!A:D,2,0))) -> CABO DE COBRE FLEXÍVEL ISOLADO, 1,5 MM², ANTI-CHAMA 450/750 V, PARA CIRCUITOS TERMINAIS - FORNECIMENTO E INSTALAÇÃO. AF_12/2015 | E64: =IF(IF(ISERROR(VLOOKUP(C64&"",'BANCO DE DADOS'!A:D,2,0)),"",VLOOKUP(C64&"",'BANCO DE DADOS'!A:D,3,0))=0,"",IF(ISERROR(VLOOKUP(C64&"",'BANCO DE DADOS'!A:D,2,0)),"",VLOOKUP(C64&"",'BANCO DE DADOS'!A:D,3,0))) -> M | F64: 25 | G64: 2.64 | H64: =F64*G64 -> 66 | I64: =K7*H64 -> 81.5628 | K64: 1.2358
A65: 7.4 | B65: SINAPI | C65: 93145 | D65: PONTO DE ILUMINAÇÃO E TOMADA, RESIDENCIAL, INCLUINDO INTERRUPTOR SIMPLES E TOMADA 10A/250V, CAIXA ELÉTRICA, ELETRODUTO, CABO, RASGO, QUEBRA E CHUMBAMENTO (EXCLUINDO LUMINÁRIA E LÂMPADA). AF_01/2016 | E65: UN | F65: 2 | G65: 245.04 | H65: =F65*G65 -> 490.08 | I65: =K8*H65 -> 605.640864 | J65: Instalar proximo ao potão | K65: 1.2358
A66: 7.5 | B66: SINAPI | C66: 91937 | D66: =IF(IF(ISERROR(VLOOKUP(C66&"",'BANCO DE DADOS'!A:D,2,0)),"",VLOOKUP(C66&"",'BANCO DE DADOS'!A:D,2,0))=0,"",IF(ISERROR(VLOOKUP(C66&"",'BANCO DE DADOS'!A:D,2,0)),"",VLOOKUP(C66&"",'BANCO DE DADOS'!A:D,2,0))) -> CAIXA OCTOGONAL 3" X 3", PVC, INSTALADA EM LAJE - FORNECIMENTO E INSTALAÇÃO. AF_12/2015 | E66: =IF(IF(ISERROR(VLOOKUP(C66&"",'BANCO DE DADOS'!A:D,2,0)),"",VLOOKUP(C66&"",'BANCO DE DADOS'!A:D,3,0))=0,"",IF(ISERROR(VLOOKUP(C66&"",'BANCO DE DADOS'!A:D,2,0)),"",VLOOKUP(C66&"",'BANCO DE DADOS'!A:D,3,0))) -> UN | F66: 5 | G66: 10.1 | H66: 50.5 | I66: =K11*H66 -> 62.4079 | K66: 1.2358
A67: 7.6 | B67: SINAPI | C67: 97593 | D67: LUMINÁRIA TIPO SPOT, DE SOBREPOR, COM 1 LÂMPADA FLUORESCENTE DE 15 W, SEM REATOR - FORNECIMENTO E INSTALAÇÃO. AF_02/2020 | E67: UN | F67: 5 | G67: 181.05 | H67: 905.25 | I67: =K13*H67 -> 1118.70795 | J67: Spot externos instalados sobre a marquise em acm | K67: 1.2358
A68: 7.7 | B68: DEINFRA | C68: 43668 | D68: Rele fotoeletrico | E68: UN | F68: 1 | G68: 37.85 | H68: =F68*G68 -> 37.85 | I68: =K14*H68 -> 46.77503
K69: 1.2358
A70: 8 | B70: MRQUISE EM ACM | I70: =SUM(I71:I72) -> 10813.25
A71: 8.1 | B71: COTAÇÃO | C71: 01 | D71: MARQUISE EM ACM E DETALHE EM CURVA - CONFORME DIMENSÃO E CORES EM PROJETO | E71: UN | F71: 1 | G71: 8750 | H71: =F71*G71 -> 8750 | I71: =K6*H71 -> 10813.25
K72: 1.2358
A73: 9 | B73: COMPLEMENTAR | I73: =SUM(I74:I76) -> 568.468 | K73: 1.2358
A74: 9.1 | B74: DEINFRA | C74: 42850 | D74: Carga e transporte de entulho e posterior transporte /10km | E74: M3 | F74: 5 | G74: 62 | H74: =F74*G74 -> 310 | I74: =K6*H74 -> 383.098 | K74: 1.2358
A75: 9.2 | B75: DEINFRA | C75: 42579 | D75: Limpeza permanente da obra | E75: M2 | F75: 15 | G75: 10 | H75: =F75*G75 -> 150 | I75: =K7*H75 -> 185.37 | J75: Limpeza de toda obra após finalizarem os serviços
K76: 1.2358
A77: =IF(ISERROR(VLOOKUP(C77,'BANCO DE DADOS'!A:D,2,0)),"",VLOOKUP(C77,'BANCO DE DADOS'!A:D,2,0)) ->  | E77: VALOR TOTAL | I77: =SUM(I9,I14,I24,I42,I50,I56,I61,I70,I73) -> 37447.29064 | K77: 1.2358
D79: Tunápolis SC, 10 de outubro de 2022
D81: ________________________________________________________
D82: INDIANARA FOLLMANN | E82: =IF(ISERROR(VLOOKUP(C82,'BANCO DE DADOS'!A:D,2,0)),"",VLOOKUP(C82,'BANCO DE DADOS'!A:D,3,0)) ->  | G82: =IF(ISERROR(VLOOKUP(C82,'BANCO DE DADOS'!A:D,2,0)),"",VLOOKUP(C82,'BANCO DE DADOS'!A:D,4,0)) ->  | I82: =IF(ISERROR(G82*F82),"",G82*F82) -> 
D83: ARQUITETA E URBANISTA CAU/SC A104830-9 | E83: =IF(ISERROR(VLOOKUP(C83,'BANCO DE DADOS'!A:D,2,0)),"",VLOOKUP(C83,'BANCO DE DADOS'!A:D,3,0)) ->  | G83: =IF(ISERROR(VLOOKUP(C83,'BANCO DE DADOS'!A:D,2,0)),"",VLOOKUP(C83,'BANCO DE DADOS'!A:D,4,0)) ->  | I83: =IF(ISERROR(G83*F83),"",G83*F83) -> 
D84: =IF(ISERROR(VLOOKUP(C84,'BANCO DE DADOS'!A:D,2,0)),"",VLOOKUP(C84,'BANCO DE DADOS'!A:D,2,0)) ->  | E84: =IF(ISERROR(VLOOKUP(C84,'BANCO DE DADOS'!A:D,2,0)),"",VLOOKUP(C84,'BANCO DE DADOS'!A:D,3,0)) ->  | G84: =IF(ISERROR(VLOOKUP(C84,'BANCO DE DADOS'!A:D,2,0)),"",VLOOKUP(C84,'BANCO DE DADOS'!A:D,4,0)) ->  | I84: =IF(ISERROR(G84*F84),"",G84*F84) -> 
D85: =IF(ISERROR(VLOOKUP(C85,'BANCO DE DADOS'!A:D,2,0)),"",VLOOKUP(C85,'BANCO DE DADOS'!A:D,2,0)) ->  | E85: =IF(ISERROR(VLOOKUP(C85,'BANCO DE DADOS'!A:D,2,0)),"",VLOOKUP(C85,'BANCO DE DADOS'!A:D,3,0)) ->  | G85: =IF(ISERROR(VLOOKUP(C85,'BANCO DE DADOS'!A:D,2,0)),"",VLOOKUP(C85,'BANCO DE DADOS'!A:D,4,0)) ->  | I85: =IF(ISERROR(G85*F85),"",G85*F85) -> 
D86: =IF(ISERROR(VLOOKUP(C86,'BANCO DE DADOS'!A:D,2,0)),"",VLOOKUP(C86,'BANCO DE DADOS'!A:D,2,0)) ->  | E86: =IF(ISERROR(VLOOKUP(C86,'BANCO DE DADOS'!A:D,2,0)),"",VLOOKUP(C86,'BANCO DE DADOS'!A:D,3,0)) ->  | G86: =IF(ISERROR(VLOOKUP(C86,'BANCO DE DADOS'!A:D,2,0)),"",VLOOKUP(C86,'BANCO DE DADOS'!A:D,4,0)) ->  | I86: =IF(ISERROR(G86*F86),"",G86*F86) -> 

Sheet CRONOGRAMA
A1: CRONOGRAMA FÍSICO FINANCEIRO
A2: ITEM | B2: DESCRIÇÃO | C2: PREÇO TOTAL | D2: 1ª MÊS | G2: 2º MÊS | J2: 3º MÊS
D3: % período | E3: % Acumulado | F3: R$ | G3: % período | H3: % Acumulado | I3: R$ | J3: % período | K3: % Acumulado | L3: R$
A4: 1 | B4: ='PLANILHA ORÇAMENTÁRIA'!B9:G9 -> SERVIÇOS PRELIMINARES | C4: ='PLANILHA ORÇAMENTÁRIA'!I9 -> 1056.164112 | D4: 1 | E4: =D4 -> 1 | F4: =C4*E4 -> 1056.164112 | H4: =D4+G4 -> 1 | I4: =C4-F4 -> 0 | K4: =J4+G4+D4 -> 1 | L4: =C4*J4 -> 0 | M4: =C4-F4-I4-L4 -> 0
A5: 2 | B5: ='PLANILHA ORÇAMENTÁRIA'!B14:G14 -> FUNDAÇÕES ( Sapatas e pilares de arranque) | C5: ='PLANILHA ORÇAMENTÁRIA'!I14 -> 3585.492235 | D5: 1 | E5: =D5 -> 1 | F5: =C5*E5 -> 3585.492235 | H5: =D5+G5 -> 1 | I5: =C5-F5 -> 0 | K5: =J5+G5+D5 -> 1 | L5: 0 | M5: =C5-F5-I5-L5 -> 0
A6: 3 | B6: ='PLANILHA ORÇAMENTÁRIA'!B24:G24 -> ESTRUTURA | C6: ='PLANILHA ORÇAMENTÁRIA'!I24 -> 6221.529316 | D6: 0.5 | E6: 0.5 | F6: 3110.764658 | G6: 0.5 | H6: 1 | I6: 3110.764658 | K6: 1 | L6: 0 | M6: 0
A7: 4 | B7: ='PLANILHA ORÇAMENTÁRIA'!B42:G42 -> VEDAÇÕES E REVESTIMENTOS | C7: ='PLANILHA ORÇAMENTÁRIA'!I42 -> 2759.21416 | D7: 0.5 | E7: 0.5 | F7: 1379.60708 | G7: 0.5 | H7: 1 | I7: 1379.60708 | K7: 1 | L7: 0 | M7: 0
A8: 5 | B8: ='PLANILHA ORÇAMENTÁRIA'!B50:G50 -> PINTURA | C8: ='PLANILHA ORÇAMENTÁRIA'!I50 -> 685.7958406 | E8: 0 | F8: 0 | H8: 0 | J8: 1 | K8: 1 | L8: 685.7958406 | M8: 0
A9: 6 | B9: ='PLANILHA ORÇAMENTÁRIA'!B56:G56 -> PORTÃO | C9: ='PLANILHA ORÇAMENTÁRIA'!I56 -> 9523.075294 | E9: 0 | F9: 0 | G9: 1 | H9: 1 | I9: =H9*C9 -> 9523.075294 | J9: 0 | K9: 1 | L9: 0 | M9: 0
A10: 7 | B10: ='PLANILHA ORÇAMENTÁRIA'!B61:G61 -> INSTALAÇÕES ELÉTRICAS | C10: ='PLANILHA ORÇAMENTÁRIA'!I61 -> 2234.301684 | E10: 0 | F10: 0 | G10: 0.5 | H10: 0.5 | I10: =H10*C10 -> 1117.150842 | J10: 0.5 | K10: 1 | L10: 1117.150842 | M10: 0
A11: 8 | B11: ='PLANILHA ORÇAMENTÁRIA'!B70:G70 -> MRQUISE EM ACM | C11: ='PLANILHA ORÇAMENTÁRIA'!I70 -> 10813.25 | E11: 0 | F11: 0 | H11: 0 | J11: 1 | K11: 1 | L11: 10813.25 | M11: 0
A12: 9 | B12: ='PLANILHA ORÇAMENTÁRIA'!B73:G73 -> COMPLEMENTAR | C12: ='PLANILHA ORÇAMENTÁRIA'!I73 -> 568.468 | E12: 0 | F12: 0 | H12: 0 | J12: 1 | K12: 1 | L12: 568.468 | M12: 0
B13: TOTAL | C13: =SUM(C4:C12) -> 37447.29064 | E13: =((F13*100%)/C13) -> 0.2438635193 | F13: =SUM(F4:F12) -> 9132.028085 | H13: =((I13*100%)/C13) -> 0.4040505365 | I13: =SUM(I4:I12) -> 15130.59787 | K13: =((L13*100%)/C13) -> 0.3520859442 | L13: =SUM(L4:L12) -> 13184.66468 | M13: 0
M14: 0
A16: Tunápolis 10 de outubro de 2022
F19: ________________________________________________________
F20: INDIANARA FOLLMANN
F21: ARQUITETA E URBANISTA CAU/SC A104830-9

Sheet BDI
A1: DEMONSTRATIVO DE CÁLCULO DO BDI
A3: Tipo de obra: Construção de Edificios
A4: ITEM | B4: DISCRIMINAÇÃO | C4: TAXAS DO BDI A CONSIDERAR
C5: MINIMO | D5: MAXIMO | E5: ADOTADO
A6: 1.0 | B6: *ADIMINISTRAÇÃO CENTRAL | C6: 0.03 | D6: 0.055 | E6: 0.04
A7: 2.0 | B7: *SEGURO + GARANTIA | C7: 0.008 | D7: 0.01 | E7: 0.01
A8: 3.0 | B8: *RISCO | C8: 0.0097 | D8: 0.0127 | E8: 0.0097
A9: 4.0 | B9: *DESPESAS FINANCEIRAS | C9: 0.0059 | D9: 0.0139 | E9: 0.0136
A10: 5.0 | B10: *LUCRO | C10: 0.0616 | D10: 0.074 | E10: 0.074
A11: 6.0 | B11: TRIBUTOS
A12: 6.1 | B12: ***ISS | C12: BASE DE CÁLCULO | D12: 1 | E12: 0.03
A13: 6.2 | B13: **PIS/PASEP | E13: 0.03
A14: 6.3 | B14: **COFINS | E14: 0.0065
A15: 6.4 | B15: CPRB | E15: 0
A16: Tributos ( I ) = | E16: =SUM(E13:E15)+(D12*E12) -> 0.0665
A18: BDI= | B18: (1+AC+S+R+G).(1+DF).(1+L) | C18: -1 | D18: =((1+E6+E7+E8)*(1+E9)*(1+E10)/(1-E16))-1 -> 0.2357752566
B19: (1 - I)
A21: AC = Administração Central
A22: S = Seguro
A23: R = Risco
A24: G = Garantia
A25: DF = Dispesas financeiras
A26: L = Lucro
A27: I = imposto (Tributos)
A28: * Em acordo estipulados pelo Acórdão 2622/2013
A29: ** Dado fornecido atravez do anexo III da Lei Complementar 126/2006 Receita bruta em 12 meses de R$ 3.420.000,00 até R$3.600.000,00 (Receita Máxima).
A30: Obs: de acordo com o Acórdão 325/2007 os itens: Contribuição Patronal Previdenciária (CPP); Contribuição Social sobre o Lucro Líquido (CSLL) e Imposto sobre a Renda da Pessoa Jurídica (IRPJ). Que consta no Anexo, não devem integrar o calculo do BDI.
A33: ________________________________________________________
A34: INDIANARA FOLLMANN
A35: ARQUITETA E URBANISTA CAU/SC A104830-9

Sheet BANCO DE DADOS
A1: CODIGO DA COMPOSICAO | B1: DESCRICAO DA COMPOSICAO | C1: UNIDADE
A2: 97141 | B2: ASSENTAMENTO DE TUBO DE FERRO FUNDIDO PARA REDE DE ÁGUA, DN 80 MM, JUNTA ELÁSTICA, INSTALADO EM LOCAL COM NÍVEL ALTO DE INTERFERÊNCIAS (NÃO INCLUI FORNECIMENTO). AF_11/2017 | C2: M | D2: 7.26
A3: 97142 | B3: ASSENTAMENTO DE TUBO DE FERRO FUNDIDO PARA REDE DE ÁGUA, DN 100 MM, JUNTA ELÁSTICA, INSTALADO EM LOCAL COM NÍVEL ALTO DE INTERFERÊNCIAS (NÃO INCLUI FORNECIMENTO). AF_11/2017 | C3: M | D3: 8,08
A4: 97143 | B4: ASSENTAMENTO DE TUBO DE FERRO FUNDIDO PARA REDE DE ÁGUA, DN 150 MM, JUNTA ELÁSTICA, INSTALADO EM LOCAL COM NÍVEL ALTO DE INTERFERÊNCIAS (NÃO INCLUI FORNECIMENTO). AF_11/2017 | C4: M | D4: 10,13
A5: 97144 | B5: ASSENTAMENTO DE TUBO DE FERRO FUNDIDO PARA REDE DE ÁGUA, DN 200 MM, JUNTA ELÁSTICA, INSTALADO EM LOCAL COM NÍVEL ALTO DE INTERFERÊNCIAS (NÃO INCLUI FORNECIMENTO). AF_11/2017 | C5: M | D5: 12,16
A6: 97145 | B6: ASSENTAMENTO DE TUBO DE FERRO FUNDIDO PARA REDE DE ÁGUA, DN 250 MM, JUNTA ELÁSTICA, INSTALADO EM LOCAL COM NÍVEL ALTO DE INTERFERÊNCIAS (NÃO INCLUI FORNECIMENTO). AF_11/2017 | C6: M | D6: 14,24
A7: 97146 | B7: ASSENTAMENTO DE TUBO DE FERRO FUNDIDO PARA REDE DE ÁGUA, DN 300 MM, JUNTA ELÁSTICA, INSTALADO EM LOCAL COM NÍVEL ALTO DE INTERFERÊNCIAS (NÃO INCLUI FORNECIMENTO). AF_11/2017 | C7: M | D7: 16,31
A8: 97147 | B8: ASSENTAMENTO DE TUBO DE FERRO FUNDIDO PARA REDE DE ÁGUA, DN 350 MM, JUNTA ELÁSTICA, INSTALADO EM LOCAL COM NÍVEL ALTO DE INTERFERÊNCIAS (NÃO INCLUI FORNECIMENTO). AF_11/2017 | C8: M | D8: 18,38
A9: 97148 | B9: ASSENTAMENTO DE TUBO DE FERRO FUNDIDO PARA REDE DE ÁGUA, DN 400 MM, JUNTA ELÁSTICA, INSTALADO EM LOCAL COM NÍVEL ALTO DE INTERFERÊNCIAS (NÃO INCLUI FORNECIMENTO). AF_11/2017 | C9: M | D9: 20,46
A10: 97149 | B10: ASSENTAMENTO DE TUBO DE FERRO FUNDIDO PARA REDE DE ÁGUA, DN 450 MM, JUNTA ELÁSTICA, INSTALADO EM LOCAL COM NÍVEL ALTO DE INTERFERÊNCIAS (NÃO INCLUI FORNECIMENTO). AF_11/2017 | C10: M | D10: 22,55
A11: 97150 | B11: ASSENTAMENTO DE TUBO DE FERRO FUNDIDO PARA REDE DE ÁGUA, DN 500 MM, JUNTA ELÁSTICA, INSTALADO EM LOCAL COM NÍVEL ALTO DE INTERFERÊNCIAS (NÃO INCLUI FORNECIMENTO). AF_11/2017 | C11: M | D11: 28,45
A12: 97151 | B12: ASSENTAMENTO DE TUBO DE FERRO FUNDIDO PARA REDE DE ÁGUA, DN 600 MM, JUNTA ELÁSTICA, INSTALADO EM LOCAL COM NÍVEL ALTO DE INTERFERÊNCIAS (NÃO INCLUI FORNECIMENTO). AF_11/2017 | C12: M | D12: 33,16
A13: 97152 | B13: ASSENTAMENTO DE TUBO DE FERRO FUNDIDO PARA REDE DE ÁGUA, DN 700 MM, JUNTA ELÁSTICA, INSTALADO EM LOCAL COM NÍVEL ALTO DE INTERFERÊNCIAS (NÃO INCLUI FORNECIMENTO). AF_11/2017 | C13: M | D13: 37,60
A14: 97153 | B14: ASSENTAMENTO DE TUBO DE FERRO FUNDIDO PARA REDE DE ÁGUA, DN 800 MM, JUNTA ELÁSTICA, INSTALADO EM LOCAL COM NÍVEL ALTO DE INTERFERÊNCIAS (NÃO INCLUI FORNECIMENTO). AF_11/2017 | C14: M | D14: 42,24
A15: 97154 | B15: ASSENTAMENTO DE TUBO DE FERRO FUNDIDO PARA REDE DE ÁGUA, DN 900 MM, JUNTA ELÁSTICA, INSTALADO EM LOCAL COM NÍVEL ALTO DE INTERFERÊNCIAS (NÃO INCLUI FORNECIMENTO). AF_11/2017 | C15: M | D15: 46,89
A16: 97155 | B16: ASSENTAMENTO DE TUBO DE FERRO FUNDIDO PARA REDE DE ÁGUA, DN 1000 MM, JUNTA ELÁSTICA, INSTALADO EM LOCAL COM NÍVEL ALTO DE INTERFERÊNCIAS (NÃO INCLUI FORNECIMENTO). AF_11/2017 | C16: M | D16: 51,56
A17: 97156 | B17: ASSENTAMENTO DE TUBO DE FERRO FUNDIDO PARA REDE DE ÁGUA, DN 1200 MM, JUNTA ELÁSTICA, INSTALADO EM LOCAL COM NÍVEL ALTO DE INTERFERÊNCIAS (NÃO INCLUI FORNECIMENTO). AF_11/2017 | C17: M | D17: 61,36
A18: 97157 | B18: ASSENTAMENTO DE TUBO DE FERRO FUNDIDO PARA REDE DE ÁGUA, DN 80 MM, JUNTA ELÁSTICA, INSTALADO EM LOCAL COM NÍVEL BAIXO DE INTERFERÊNCIAS (NÃO INCLUI FORNECIMENTO). AF_11/2017 | C18: M | D18: 4,43
A19: 97158 | B19: ASSENTAMENTO DE TUBO DE FERRO FUNDIDO PARA REDE DE ÁGUA, DN 100 MM, JUNTA ELÁSTICA, INSTALADO EM LOCAL COM NÍVEL BAIXO DE INTERFERÊNCIAS (NÃO INCLUI FORNECIMENTO). AF_11/2017 | C19: M | D19: 4,95
A20: 97159 | B20: ASSENTAMENTO DE TUBO DE FERRO FUNDIDO PARA REDE DE ÁGUA, DN 150 MM, JUNTA ELÁSTICA, INSTALADO EM LOCAL COM NÍVEL BAIXO DE INTERFERÊNCIAS (NÃO INCLUI FORNECIMENTO). AF_11/2017 | C20: M | D20: 6,21
A21: 97160 | B21: ASSENTAMENTO DE TUBO DE FERRO FUNDIDO PARA REDE DE ÁGUA, DN 200 MM, JUNTA ELÁSTICA, INSTALADO EM LOCAL COM NÍVEL BAIXO DE INTERFERÊNCIAS (NÃO INCLUI FORNECIMENTO). AF_11/2017 | C21: M | D21: 7,45
A22: 97161 | B22: ASSENTAMENTO DE TUBO DE FERRO FUNDIDO PARA REDE DE ÁGUA, DN 250 MM, JUNTA ELÁSTICA, INSTALADO EM LOCAL COM NÍVEL BAIXO DE INTERFERÊNCIAS (NÃO INCLUI FORNECIMENTO). AF_11/2017 | C22: M | D22: 8,75
A23: 97162 | B23: ASSENTAMENTO DE TUBO DE FERRO FUNDIDO PARA REDE DE ÁGUA, DN 300 MM, JUNTA ELÁSTICA, INSTALADO EM LOCAL COM NÍVEL BAIXO DE INTERFERÊNCIAS (NÃO INCLUI FORNECIMENTO). AF_11/2017 | C23: M | D23: 10,03
A24: 97163 | B24: ASSENTAMENTO DE TUBO DE FERRO FUNDIDO PARA REDE DE ÁGUA, DN 350 MM, JUNTA ELÁSTICA, INSTALADO EM LOCAL COM NÍVEL BAIXO DE INTERFERÊNCIAS (NÃO INCLUI FORNECIMENTO). AF_11/2017 | C24: M | D24: 11,30
A25: 97164 | B25: ASSENTAMENTO DE TUBO DE FERRO FUNDIDO PARA REDE DE ÁGUA, DN 400 MM, JUNTA ELÁSTICA, INSTALADO EM LOCAL COM NÍVEL BAIXO DE INTERFERÊNCIAS (NÃO INCLUI FORNECIMENTO). AF_11/2017 | C25: M | D25: 12,59
A26: 97165 | B26: ASSENTAMENTO DE TUBO DE FERRO FUNDIDO PARA REDE DE ÁGUA, DN 450 MM, JUNTA ELÁSTICA, INSTALADO EM LOCAL COM NÍVEL BAIXO DE INTERFERÊNCIAS (NÃO INCLUI FORNECIMENTO). AF_11/2017 | C26: M | D26: 13,91
A27: 97166 | B27: ASSENTAMENTO DE TUBO DE FERRO FUNDIDO PARA REDE DE ÁGUA, DN 500 MM, JUNTA ELÁSTICA, INSTALADO EM LOCAL COM NÍVEL BAIXO DE INTERFERÊNCIAS (NÃO INCLUI FORNECIMENTO). AF_11/2017 | C27: M | D27: 17,53
A28: 97167 | B28: ASSENTAMENTO DE TUBO DE FERRO FUNDIDO PARA REDE DE ÁGUA, DN 600 MM, JUNTA ELÁSTICA, INSTALADO EM LOCAL COM NÍVEL BAIXO DE INTERFERÊNCIAS (NÃO INCLUI FORNECIMENTO). AF_11/2017 | C28: M | D28: 20,47
A29: 97168 | B29: ASSENTAMENTO DE TUBO DE FERRO FUNDIDO PARA REDE DE ÁGUA, DN 700 MM, JUNTA ELÁSTICA, INSTALADO EM LOCAL COM NÍVEL BAIXO DE INTERFERÊNCIAS (NÃO INCLUI FORNECIMENTO). AF_11/2017 | C29: M | D29: 23,14
A30: 97169 | B30: ASSENTAMENTO DE TUBO DE FERRO FUNDIDO PARA REDE DE ÁGUA, DN 800 MM, JUNTA ELÁSTICA, INSTALADO EM LOCAL COM NÍVEL BAIXO DE INTERFERÊNCIAS (NÃO INCLUI FORNECIMENTO). AF_11/2017 | C30: M | D30: 25,97
A31: 97170 | B31: ASSENTAMENTO DE TUBO DE FERRO FUNDIDO PARA REDE DE ÁGUA, DN 900 MM, JUNTA ELÁSTICA, INSTALADO EM LOCAL COM NÍVEL BAIXO DE INTERFERÊNCIAS (NÃO INCLUI FORNECIMENTO). AF_11/2017 | C31: M | D31: 28,86
A32: 97171 | B32: ASSENTAMENTO DE TUBO DE FERRO FUNDIDO PARA REDE DE ÁGUA, DN 1000 MM, JUNTA ELÁSTICA, INSTALADO EM LOCAL COM NÍVEL BAIXO DE INTERFERÊNCIAS (NÃO INCLUI FORNECIMENTO). AF_11/2017 | C32: M | D32: 31,75
A33: 97172 | B33: ASSENTAMENTO DE TUBO DE FERRO FUNDIDO PARA REDE DE ÁGUA, DN 1200 MM, JUNTA ELÁSTICA, INSTALADO EM LOCAL COM NÍVEL BAIXO DE INTERFERÊNCIAS (NÃO INCLUI FORNECIMENTO). AF_11/2017 | C33: M | D33: 37,98
A34: 97173 | B34: ASSENTAMENTO DE TUBO DE AÇO CARBONO PARA REDE DE ÁGUA, DN 600 MM (24), JUNTA SOLDADA, INSTALADO EM LOCAL COM NÍVEL ALTO DE INTERFERÊNCIAS (NÃO INCLUI FORNECIMENTO). AF_11/2017 | C34: M | D34: 33,60
A35: 97174 | B35: ASSENTAMENTO DE TUBO DE AÇO CARBONO PARA REDE DE ÁGUA, DN 700 MM (28), JUNTA SOLDADA, INSTALADO EM LOCAL COM NÍVEL ALTO DE INTERFERÊNCIAS (NÃO INCLUI FORNECIMENTO). AF_11/2017 | C35: M | D35: 38,92
A36: 97175 | B36: ASSENTAMENTO DE TUBO DE AÇO CARBONO PARA REDE DE ÁGUA, DN 800 MM (32), JUNTA SOLDADA, INSTALADO EM LOCAL COM NÍVEL ALTO DE INTERFERÊNCIAS (NÃO INCLUI FORNECIMENTO). AF_11/2017 | C36: M | D36: 44,21
A37: 97176 | B37: ASSENTAMENTO DE TUBO DE AÇO CARBONO PARA REDE DE ÁGUA, DN 900 MM (36), JUNTA SOLDADA, INSTALADO EM LOCAL COM NÍVEL ALTO DE INTERFERÊNCIAS (NÃO INCLUI FORNECIMENTO). AF_11/2017 | C37: M | D37: 49,53
A38: 97177 | B38: ASSENTAMENTO DE TUBO DE AÇO CARBONO PARA REDE DE ÁGUA, DN 1000 MM (40) OU DN 1100 MM (44), JUNTA SOLDADA, INSTALADO EM LOCAL COM NÍVEL ALTO DE INTERFERÊNCIAS (NÃO INCLUI FORNECIMENTO). AF_11/2017 | C38: M | D38: 60,14
A39: 97178 | B39: ASSENTAMENTO DE TUBO DE AÇO CARBONO PARA REDE DE ÁGUA, DN 1200 MM (48) OU DN 1300 MM (52), JUNTA SOLDADA, INSTALADO EM LOCAL COM NÍVEL ALTO DE INTERFERÊNCIAS (NÃO INCLUI FORNECIMENTO). AF_11/2017 | C39: M | D39: 70,78
A40: 97179 | B40: ASSENTAMENTO DE TUBO DE AÇO CARBONO PARA REDE DE ÁGUA, DN 1400 MM (56'') OU DN 1500 MM (60), JUNTA SOLDADA, INSTALADO EM LOCAL COM NÍVEL ALTO DE INTERFERÊNCIAS (NÃO INCLUI FORNECIMENTO). AF_11/2017 | C40: M | D40: 81,40
A41: 97180 | B41: ASSENTAMENTO DE TUBO DE AÇO CARBONO PARA REDE DE ÁGUA, DN 1600 MM (64) OU DN 1700 MM (68), JUNTA SOLDADA, INSTALADO EM LOCAL COM NÍVEL ALTO DE INTERFERÊNCIAS (NÃO INCLUI FORNECIMENTO). AF_11/2017 | C41: M | D41: 92,01
A42: 97181 | B42: ASSENTAMENTO DE TUBO DE AÇO CARBONO PARA REDE DE ÁGUA, DN 1800 MM (72) OU DN 1900 MM (76), JUNTA SOLDADA, INSTALADO EM LOCAL COM NÍVEL ALTO DE INTERFERÊNCIAS (NÃO INCLUI FORNECIMENTO). AF_11/2017 | C42: M | D42: 106,65
A43: 97182 | B43: ASSENTAMENTO DE TUBO DE AÇO CARBONO PARA REDE DE ÁGUA, DN 2000 MM (80) OU DN 2100 MM (84), JUNTA SOLDADA, INSTALADO EM LOCAL COM NÍVEL ALTO DE INTERFERÊNCIAS (NÃO INCLUI FORNECIMENTO). AF_11/2017 | C43: M | D43: 117,68
A44: 97183 | B44: ASSENTAMENTO DE TUBO DE AÇO CARBONO PARA REDE DE ÁGUA, DN 600 MM (24), JUNTA SOLDADA, INSTALADO EM LOCAL COM NÍVEL BAIXO DE INTERFERÊNCIAS (NÃO INCLUI FORNECIMENTO). AF_11/2017 | C44: M | D44: 27,64
A45: 97184 | B45: ASSENTAMENTO DE TUBO DE AÇO CARBONO PARA REDE DE ÁGUA, DN 700 MM (28), JUNTA SOLDADA, INSTALADO EM LOCAL COM NÍVEL BAIXO DE INTERFERÊNCIAS (NÃO INCLUI FORNECIMENTO). AF_11/2017 | C45: M | D45: 32,07
A46: 97185 | B46: ASSENTAMENTO DE TUBO DE AÇO CARBONO PARA REDE DE ÁGUA, DN 800 MM (32), JUNTA SOLDADA, INSTALADO EM LOCAL COM NÍVEL BAIXO DE INTERFERÊNCIAS (NÃO INCLUI FORNECIMENTO). AF_11/2017 | C46: M | D46: 36,49
A47: 97186 | B47: ASSENTAMENTO DE TUBO DE AÇO CARBONO PARA REDE DE ÁGUA, DN 900 MM (36), JUNTA SOLDADA, INSTALADO EM LOCAL COM NÍVEL BAIXO DE INTERFERÊNCIAS (NÃO INCLUI FORNECIMENTO). AF_11/2017 | C47: M | D47: 40,94
A48: 97187 | B48: ASSENTAMENTO DE TUBO DE AÇO CARBONO PARA REDE DE ÁGUA, DN 1000 MM (40 ) OU DN 1100 MM (44 ), JUNTA SOLDADA, INSTALADO EM LOCAL COM NÍVEL BAIXO DE INTERFERÊNCIAS (NÃO INCLUI FORNECIMENTO). AF_11/2017 | C48: M | D48: 49,79
A49: 97188 | B49: ASSENTAMENTO DE TUBO DE AÇO CARBONO PARA REDE DE ÁGUA, DN 1200 MM (48) OU DN 1300 MM (52), JUNTA SOLDADA, INSTALADO EM LOCAL COM NÍVEL BAIXO DE INTERFERÊNCIAS (NÃO INCLUI FORNECIMENTO). AF_11/2017 | C49: M | D49: 58,66
A50: 97189 | B50: ASSENTAMENTO DE TUBO DE AÇO CARBONO PARA REDE DE ÁGUA, DN 1400 MM (56'') OU DN 1500 MM (60), JUNTA SOLDADA, INSTALADO EM LOCAL COM NÍVEL BAIXO DE INTERFERÊNCIAS (NÃO INCLUI FORNECIMENTO). AF_11/2017 | C50: M | D50: 67,53
A51: 97190 | B51: ASSENTAMENTO DE TUBO DE AÇO CARBONO PARA REDE DE ÁGUA, DN 1600 MM (64) OU DN 1700 MM (68), JUNTA SOLDADA, INSTALADO EM LOCAL COM NÍVEL BAIXO DE INTERFERÊNCIAS (NÃO INCLUI FORNECIMENTO). AF_11/2017 | C51: M | D51: 76,38
A52: 97191 | B52: ASSENTAMENTO DE TUBO DE AÇO CARBONO PARA REDE DE ÁGUA, DN 1800 MM (72) OU DN 1900 MM (76), JUNTA SOLDADA, INSTALADO EM LOCAL COM NÍVEL BAIXO DE INTERFERÊNCIAS (NÃO INCLUI FORNECIMENTO). AF_11/2017 | C52: M | D52: 88,23
A53: 97192 | B53: ASSENTAMENTO DE TUBO DE AÇO CARBONO PARA REDE DE ÁGUA, DN 2000 MM (80) OU DN 2100 MM (84), JUNTA SOLDADA, INSTALADO EM LOCAL COM NÍVEL BAIXO DE INTERFERÊNCIAS (NÃO INCLUI FORNECIMENTO). AF_11/2017 | C53: M | D53: 97,39
A54: 90694 | B54: TUBO DE PVC PARA REDE COLETORA DE ESGOTO DE PAREDE MACIÇA, DN 100 MM, JUNTA ELÁSTICA - FORNECIMENTO E ASSENTAMENTO. AF_01/2021 | C54: M | D54: 44,60
A55: 90695 | B55: TUBO DE PVC PARA REDE COLETORA DE ESGOTO DE PAREDE MACIÇA, DN 150 MM, JUNTA ELÁSTICA - FORNECIMENTO E ASSENTAMENTO. AF_01/2021 | C55: M | D55: 93,16
A56: 90696 | B56: TUBO DE PVC PARA REDE COLETORA DE ESGOTO DE PAREDE MACIÇA, DN 200 MM, JUNTA ELÁSTICA - FORNECIMENTO E ASSENTAMENTO. AF_01/2021 | C56: M | D56: 138,49
A57: 90697 | B57: TUBO DE PVC PARA REDE COLETORA DE ESGOTO DE PAREDE MACIÇA, DN 250 MM, JUNTA ELÁSTICA - FORNECIMENTO E ASSENTAMENTO. AF_01/2021 | C57: M | D57: 233,71
A58: 90698 | B58: TUBO DE PVC PARA REDE COLETORA DE ESGOTO DE PAREDE MACIÇA, DN 300 MM, JUNTA ELÁSTICA, FORNECIMENTO E ASSENTAMENTO. AF_01/2021 | C58: M | D58: 374,99
A59: 90699 | B59: TUBO DE PVC PARA REDE COLETORA DE ESGOTO DE PAREDE MACIÇA, DN 350 MM, JUNTA ELÁSTICA - FORNECIMENTO E ASSENTAMENTO. AF_01/2021 | C59: M | D59: 463,71
A60: 90700 | B60: TUBO DE PVC PARA REDE COLETORA DE ESGOTO DE PAREDE MACIÇA, DN 400 MM, JUNTA ELÁSTICA FORNECIMENTO E ASSENTAMENTO. AF_01/2021 | C60: M | D60: 601,09
A61: 90701 | B61: TUBO DE PVC CORRUGADO DE DUPLA PAREDE PARA REDE COLETORA DE ESGOTO, DN 150 MM, JUNTA ELÁSTICA - FORNECIMENTO E ASSENTAMENTO. AF_01/2021 | C61: M | D61: 75,39
A62: 90702 | B62: TUBO DE PVC CORRUGADO DE DUPLA PAREDE PARA REDE COLETORA DE ESGOTO, DN 200 MM, JUNTA ELÁSTICA - FORNECIMENTO E ASSENTAMENTO. AF_01/2021 | C62: M | D62: 121,04
A63: 90703 | B63: TUBO DE PVC CORRUGADO DE DUPLA PAREDE PARA REDE COLETORA DE ESGOTO, DN 250 MM, JUNTA ELÁSTICA - FORNECIMENTO E ASSENTAMENTO. AF_01/2021 | C63: M | D63: 200,21
A64: 90704 | B64: TUBO DE PVC CORRUGADO DE DUPLA PAREDE PARA REDE COLETORA DE ESGOTO, DN 300 MM, JUNTA ELÁSTICA - FORNECIMENTO E ASSENTAMENTO. AF_01/2021 | C64: M | D64: 283,61
A65: 90705 | B65: TUBO DE PVC CORRUGADO DE DUPLA PAREDE PARA REDE COLETORA DE ESGOTO, DN 350 MM, JUNTA ELÁSTICA - FORNECIMENTO E ASSENTAMENTO. AF_01/2021 | C65: M | D65: 387,19
A66: 90706 | B66: TUBO DE PVC CORRUGADO DE DUPLA PAREDE PARA REDE COLETORA DE ESGOTO, DN 400 MM, JUNTA ELÁSTICA - FORNECIMENTO E ASSENTAMENTO. AF_01/2021 | C66: M | D66: 453,45
A67: 90708 | B67: TUBO DE PEAD CORRUGADO DE DUPLA PAREDE PARA REDE COLETORA DE ESGOTO, DN 600 MM, JUNTA ELÁSTICA INTEGRADA - FORNECIMENTO E ASSENTAMENTO. AF_01/2021 | C67: M | D67: 1.275,38
A68: 90724 | B68: JUNTA ARGAMASSADA ENTRE TUBO DN 100 MM E O POÇO DE VISITA/ CAIXA DE CONCRETO OU ALVENARIA EM REDES DE ESGOTO. AF_01/2021 | C68: UN | D68: 20,65
A69: 90725 | B69: JUNTA ARGAMASSADA ENTRE TUBO DN 150 MM E O POÇO DE VISITA/ CAIXA DE CONCRETO OU ALVENARIA EM REDES DE ESGOTO. AF_01/2021 | C69: UN | D69: 25,41
A70: 90726 | B70: JUNTA ARGAMASSADA ENTRE TUBO DN 200 MM E O POÇO/ CAIXA DE CONCRETO OU ALVENARIA EM REDES DE ESGOTO. AF_01/2021 | C70: UN | D70: 30,24
A71: 90727 | B71: JUNTA ARGAMASSADA ENTRE TUBO DN 250 MM E O POÇO DE VISITA/ CAIXA DE CONCRETO OU ALVENARIA EM REDES DE ESGOTO. AF_01/2021 | C71: UN | D71: 35,01
A72: 90728 | B72: JUNTA ARGAMASSADA ENTRE TUBO DN 300 MM E O POÇO DE VISITA/ CAIXA DE CONCRETO OU ALVENARIA EM REDES DE ESGOTO. AF_01/2021 | C72: UN | D72: 39,78
A73: 90729 | B73: JUNTA ARGAMASSADA ENTRE TUBO DN 350 MM E O POÇO DE VISITA/ CAIXA DE CONCRETO OU ALVENARIA EM REDES DE ESGOTO. AF_01/2021 | C73: UN | D73: 44,55
A74: 90730 | B74: JUNTA ARGAMASSADA ENTRE TUBO DN 400 MM E O POÇO DE VISITA/ CAIXA DE CONCRETO OU ALVENARIA EM REDES DE ESGOTO. AF_01/2021 | C74: UN | D74: 49,32
A75: 90731 | B75: JUNTA ARGAMASSADA ENTRE TUBO DN 450 MM E O POÇO DE VISITA/ CAIXA DE CONCRETO OU ALVENARIA EM REDES DE ESGOTO. AF_01/2021 | C75: UN | D75: 54,10
A76: 90732 | B76: JUNTA ARGAMASSADA ENTRE TUBO DN 600 MM E O POÇO DE VISITA/ CAIXA DE CONCRETO OU ALVENARIA EM REDES DE ESGOTO. AF_01/2021 | C76: UN | D76: 68,40
A77: 90733 | B77: ASSENTAMENTO DE TUBO DE PVC PARA REDE COLETORA DE ESGOTO DE PAREDE MACIÇA, DN 100 MM, JUNTA ELÁSTICA (NÃO INCLUI FORNECIMENTO). AF_01/2021 | C77: M | D77: 2,88
A78: 90734 | B78: ASSENTAMENTO DE TUBO DE PVC PARA REDE COLETORA DE ESGOTO DE PAREDE MACIÇA, DN 150 MM, JUNTA ELÁSTICA, (NÃO INCLUI FORNECIMENTO). AF_01/2021 | C78: M | D78: 3,43
A79: 90735 | B79: ASSENTAMENTO DE TUBO DE PVC PARA REDE COLETORA DE ESGOTO DE PAREDE MACIÇA, DN 200 MM, JUNTA ELÁSTICA (NÃO INCLUI FORNECIMENTO). AF_01/2021 | C79: M | D79: 3,95
A80: 90736 | B80: ASSENTAMENTO DE TUBO DE PVC PARA REDE COLETORA DE ESGOTO DE PAREDE MACIÇA, DN 250 MM, JUNTA ELÁSTICA (NÃO INCLUI FORNECIMENTO). AF_01/2021 | C80: M | D80: 4,50
A81: 90737 | B81: ASSENTAMENTO DE TUBO DE PVC PARA REDE COLETORA DE ESGOTO DE PAREDE MACIÇA, DN 300 MM, JUNTA ELÁSTICA (NÃO INCLUI FORNECIMENTO). AF_01/2021 | C81: M | D81: 5,03
A82: 90738 | B82: ASSENTAMENTO DE TUBO DE PVC PARA REDE COLETORA DE ESGOTO DE PAREDE MACIÇA, DN 350 MM, JUNTA ELÁSTICA (NÃO INCLUI FORNECIMENTO). AF_01/2021 | C82: M | D82: 5,56
A83: 90739 | B83: ASSENTAMENTO DE TUBO DE PVC PARA REDE COLETORA DE ESGOTO DE PAREDE MACIÇA, DN 400 MM, JUNTA ELÁSTICA (NÃO INCLUI FORNECIMENTO). AF_01/2021 | C83: M | D83: 7,81
A84: 90740 | B84: ASSENTAMENTO DE TUBO DE PVC CORRUGADO DE DUPLA PAREDE PARA REDE COLETORA DE ESGOTO, DN 150 MM, JUNTA ELÁSTICA (NÃO INCLUI FORNECIMENTO). AF_01/2021 | C84: M | D84: 3,82
A85: 90741 | B85: ASSENTAMENTO DE TUBO DE PVC CORRUGADO DE DUPLA PAREDE PARA REDE COLETORA DE ESGOTO, DN 200 MM, JUNTA ELÁSTICA (NÃO INCLUI FORNECIMENTO). AF_01/2021 | C85: M | D85: 4,35
A86: 90742 | B86: ASSENTAMENTO DE TUBO DE PVC CORRUGADO DE DUPLA PAREDE PARA REDE COLETORA DE ESGOTO, DN 250 MM, JUNTA ELÁSTICA (NÃO INCLUI FORNECIMENTO). AF_01/2021 | C86: M | D86: 4,88
A87: 90743 | B87: ASSENTAMENTO DE TUBO DE PVC CORRUGADO DE DUPLA PAREDE PARA REDE COLETORA DE ESGOTO, DN 300 MM, JUNTA ELÁSTICA (NÃO INCLUI FORNECIMENTO). AF_01/2021 | C87: M | D87: 5,42
A88: 90744 | B88: ASSENTAMENTO DE TUBO DE PVC CORRUGADO DE DUPLA PAREDE PARA REDE COLETORA DE ESGOTO, DN 350 MM, JUNTA ELÁSTICA (NÃO INCLUI FORNECIMENTO). AF_01/2021 | C88: M | D88: 5,95
A89: 90745 | B89: ASSENTAMENTO DE TUBO DE PVC CORRUGADO DE DUPLA PAREDE PARA REDE COLETORA DE ESGOTO, DN 400 MM, JUNTA ELÁSTICA (NÃO INCLUI FORNECIMENTO). AF_01/2021 | C89: M | D89: 8,72
A90: 90746 | B90: ASSENTAMENTO DE TUBO DE PEAD CORRUGADO DE DUPLA PAREDE PARA REDE COLETORA DE ESGOTO, DN 450 MM, JUNTA ELÁSTICA INTEGRADA (NÃO INCLUI FORNECIMENTO). AF_01/2021 | C90: M | D90: 3,12
A91: 90747 | B91: ASSENTAMENTO DE TUBO DE PEAD CORRUGADO DE DUPLA PAREDE PARA REDE COLETORA DE ESGOTO, DN 600 MM, JUNTA ELÁSTICA INTEGRADA (NÃO INCLUI FORNECIMENTO). AF_01/2021 | C91: M | D91: 14,56
A92: 94869 | B92: TUBO DE PEAD CORRUGADO DE DUPLA PAREDE PARA REDE COLETORA DE ESGOTO, DN 250 MM, JUNTA ELÁSTICA INTEGRADA - FORNECIMENTO E ASSENTAMENTO. AF_01/2021 | C92: M | D92: 260,06
A93: 94870 | B93: ASSENTAMENTO DE TUBO DE PEAD CORRUGADO DE DUPLA PAREDE PARA REDE COLETORA DE ESGOTO, DN 250 MM, JUNTA ELÁSTICA INTEGRADA (NÃO INCLUI FORNECIMENTO). AF_01/2021 | C93: M | D93: 1,89
A94: 94871 | B94: TUBO DE PEAD CORRUGADO DE DUPLA PAREDE PARA REDE COLETORA DE ESGOTO, DN 300 MM, JUNTA ELÁSTICA INTEGRADA - FORNECIMENTO E ASSENTAMENTO. AF_01/2021 | C94: M | D94: 307,92
A95: 94872 | B95: ASSENTAMENTO DE TUBO DE PEAD CORRUGADO DE DUPLA PAREDE PARA REDE COLETORA DE ESGOTO, DN 300 MM, JUNTA ELÁSTICA INTEGRADA (NÃO INCLUI FORNECIMENTO). AF_01/2021 | C95: M | D95: 2,57
A96: 94875 | B96: TUBO DE PEAD CORRUGADO DE DUPLA PAREDE PARA REDE COLETORA DE ESGOTO, DN 800 MM, JUNTA ELÁSTICA INTEGRADA - FORNECIMENTO E ASSENTAMENTO. AF_01/2021 | C96: M | D96: 1.801,49
A97: 94876 | B97: ASSENTAMENTO DE TUBO DE PEAD CORRUGADO DE DUPLA PAREDE PARA REDE COLETORA DE ESGOTO, DN 800 MM, JUNTA ELÁSTICA INTEGRADA (NÃO INCLUI FORNECIMENTO). AF_01/2021 | C97: M | D97: 25,14
A98: 94878 | B98: ASSENTAMENTO DE TUBO DE PEAD CORRUGADO DE DUPLA PAREDE PARA REDE COLETORA DE ESGOTO, DN 900 MM, JUNTA ELÁSTICA INTEGRADA (NÃO INCLUI FORNECIMENTO). AF_01/2021 | C98: M | D98: 28,98
A99: 94879 | B99: TUBO DE PEAD CORRUGADO DE DUPLA PAREDE PARA REDE COLETORA DE ESGOTO, DN 1000 MM, JUNTA ELÁSTICA INTEGRADA - FORNECIMENTO E ASSENTAMENTO. AF_01/2021 | C99: M | D99: 2.398,95
A100: 94880 | B100: ASSENTAMENTO DE TUBO DE PEAD CORRUGADO DE DUPLA PAREDE PARA REDE COLETORA DE ESGOTO, DN 1000 MM, JUNTA ELÁSTICA INTEGRADA (NÃO INCLUI FORNECIMENTO). AF_01/2021 | C100: M | D100: 37,89
A101: 94881 | B101: TUBO DE PEAD CORRUGADO DE DUPLA PAREDE PARA REDE COLETORA DE ESGOTO, DN 1200 MM, JUNTA ELÁSTICA INTEGRADA - FORNECIMENTO E ASSENTAMENTO. AF_01/2021 | C101: M | D101: 3.749,46
A102: 94882 | B102: ASSENTAMENTO DE TUBO DE PEAD CORRUGADO DE DUPLA PAREDE PARA REDE COLETORA DE ESGOTO, DN 1200 MM, JUNTA ELÁSTICA INTEGRADA (NÃO INCLUI FORNECIMENTO). AF_01/2021 | C102: M | D102: 43,79
A103: 94884 | B103: ASSENTAMENTO DE TUBO DE PEAD CORRUGADO DE DUPLA PAREDE PARA REDE COLETORA DE ESGOTO, DN 1500 MM, JUNTA ELÁSTICA INTEGRADA (NÃO INCLUI FORNECIMENTO). AF_01/2021 | C103: M | D103: 55,74
A104: 97121 | B104: ASSENTAMENTO DE TUBO DE PVC PBA PARA REDE DE ÁGUA, DN 50 MM, JUNTA ELÁSTICA INTEGRADA, INSTALADO EM LOCAL COM NÍVEL ALTO DE INTERFERÊNCIAS (NÃO INCLUI FORNECIMENTO). AF_11/2017 | C104: M | D104: 1,75
A105: 97122 | B105: ASSENTAMENTO DE TUBO DE PVC PBA PARA REDE DE ÁGUA, DN 75 MM, JUNTA ELÁSTICA INTEGRADA, INSTALADO EM LOCAL COM NÍVEL ALTO DE INTERFERÊNCIAS (NÃO INCLUI FORNECIMENTO). AF_11/2017 | C105: M | D105: 2,46
A106: 97123 | B106: ASSENTAMENTO DE TUBO DE PVC PBA PARA REDE DE ÁGUA, DN 100 MM, JUNTA ELÁSTICA INTEGRADA, INSTALADO EM LOCAL COM NÍVEL ALTO DE INTERFERÊNCIAS (NÃO INCLUI FORNECIMENTO). AF_11/2017 | C106: M | D106: 3,11
A107: 97124 | B107: ASSENTAMENTO DE TUBO DE PVC PBA PARA REDE DE ÁGUA, DN 50 MM, JUNTA ELÁSTICA INTEGRADA, INSTALADO EM LOCAL COM NÍVEL BAIXO DE INTERFERÊNCIAS (NÃO INCLUI FORNECIMENTO). AF_11/2017 | C107: M | D107: 0,78
A108: 97125 | B108: ASSENTAMENTO DE TUBO DE PVC PBA PARA REDE DE ÁGUA, DN 75 MM, JUNTA ELÁSTICA INTEGRADA, INSTALADO EM LOCAL COM NÍVEL BAIXO DE INTERFERÊNCIAS (NÃO INCLUI FORNECIMENTO). AF_11/2017 | C108: M | D108: 1,14
A109: 97126 | B109: ASSENTAMENTO DE TUBO DE PVC PBA PARA REDE DE ÁGUA, DN 100 MM, JUNTA ELÁSTICA INTEGRADA, INSTALADO EM LOCAL COM NÍVEL BAIXO DE INTERFERÊNCIAS (NÃO INCLUI FORNECIMENTO). AF_11/2017 | C109: M | D109: 1,45
A110: 102264 | B110: TUBO DE PVC BRANCO PARA REDE COLETORA DE ESGOTO CONDOMINIAL DE PAREDE MACIÇA, DN 100 MM, JUNTA ELÁSTICA - FORNECIMENTO E ASSENTAMENTO. AF_01/2021 | C110: M | D110: 21,27
A111: 102265 | B111: JUNTA ARGAMASSADA ENTRE TUBO DN 800 MM E O POÇO DE VISITA/ CAIXA DE CONCRETO OU ALVENARIA EM REDES DE ESGOTO. AF_01/2021 | C111: UN | D111: 87,50
A112: 102266 | B112: JUNTA ARGAMASSADA ENTRE TUBO DN 900 MM E O POÇO DE VISITA/ CAIXA DE CONCRETO OU ALVENARIA EM REDES DE ESGOTO. AF_01/2021 | C112: UN | D112: 97,04
A113: 102267 | B113: JUNTA ARGAMASSADA ENTRE TUBO DN 1000 MM E O POÇO DE VISITA/ CAIXA DE CONCRETO OU ALVENARIA EM REDES DE ESGOTO. AF_01/2021 | C113: UN | D113: 111,41
A114: 102268 | B114: JUNTA ARGAMASSADA ENTRE TUBO DN 1200 MM E O POÇO DE VISITA/ CAIXA DE CONCRETO OU ALVENARIA EM REDES DE ESGOTO. AF_01/2021 | C114: UN | D114: 125,73
A115: 102269 | B115: JUNTA ARGAMASSADA ENTRE TUBO DN 1500 MM E O POÇO DE VISITA/ CAIXA DE CONCRETO OU ALVENARIA EM REDES DE ESGOTO. AF_01/2021 | C115: UN | D115: 154,36
A116: 92833 | B116: TUBO DE CONCRETO PARA REDES COLETORAS DE ESGOTO SANITÁRIO, DIÂMETRO DE 300 MM, JUNTA ELÁSTICA, INSTALADO EM LOCAL COM BAIXO NÍVEL DE INTERFERÊNCIAS - FORNECIMENTO E ASSENTAMENTO. AF_12/2015 | C116: M | D116: 184,58
A117: 92834 | B117: ASSENTAMENTO DE TUBO DE CONCRETO PARA REDES COLETORAS DE ESGOTO SANITÁRIO, DIÂMETRO DE 300 MM, JUNTA ELÁSTICA, INSTALADO EM LOCAL COM BAIXO NÍVEL DE INTERFERÊNCIAS (NÃO INCLUI FORNECIMENTO). AF_12/2015 | C117: M | D117: 7,82
A118: 92835 | B118: TUBO DE CONCRETO PARA REDES COLETORAS DE ESGOTO SANITÁRIO, DIÂMETRO DE 400 MM, JUNTA ELÁSTICA, INSTALADO EM LOCAL COM BAIXO NÍVEL DE INTERFERÊNCIAS - FORNECIMENTO E ASSENTAMENTO. AF_12/2015 | C118: M | D118: 193,33
A119: 92836 | B119: ASSENTAMENTO DE TUBO DE CONCRETO PARA REDES COLETORAS DE ESGOTO SANITÁRIO, DIÂMETRO DE 400 MM, JUNTA ELÁSTICA, INSTALADO EM LOCAL COM BAIXO NÍVEL DE INTERFERÊNCIAS (NÃO INCLUI FORNECIMENTO). AF_12/2015 | C119: M | D119: 9,98
A120: 92837 | B120: TUBO DE CONCRETO PARA REDES COLETORAS DE ESGOTO SANITÁRIO, DIÂMETRO DE 500 MM, JUNTA ELÁSTICA, INSTALADO EM LOCAL COM BAIXO NÍVEL DE INTERFERÊNCIAS - FORNECIMENTO E ASSENTAMENTO. AF_12/2015 | C120: M | D120: 341,61
A121: 92838 | B121: ASSENTAMENTO DE TUBO DE CONCRETO PARA REDES COLETORAS DE ESGOTO SANITÁRIO, DIÂMETRO DE 500 MM, JUNTA ELÁSTICA, INSTALADO EM LOCAL COM BAIXO NÍVEL DE INTERFERÊNCIAS (NÃO INCLUI FORNECIMENTO). AF_12/2015 | C121: M | D121: 11,98
A122: 92839 | B122: TUBO DE CONCRETO PARA REDES COLETORAS DE ESGOTO SANITÁRIO, DIÂMETRO DE 600 MM, JUNTA ELÁSTICA, INSTALADO EM LOCAL COM BAIXO NÍVEL DE INTERFERÊNCIAS - FORNECIMENTO E ASSENTAMENTO. AF_12/2015 | C122: M | D122: 417,95
A123: 92840 | B123: ASSENTAMENTO DE TUBO DE CONCRETO PARA REDES COLETORAS DE ESGOTO SANITÁRIO, DIÂMETRO DE 600 MM, JUNTA ELÁSTICA, INSTALADO EM LOCAL COM BAIXO NÍVEL DE INTERFERÊNCIAS (NÃO INCLUI FORNECIMENTO). AF_12/2015 | C123: M | D123: 14,19
A124: 92841 | B124: TUBO DE CONCRETO PARA REDES COLETORAS DE ESGOTO SANITÁRIO, DIÂMETRO DE 700 MM, JUNTA ELÁSTICA, INSTALADO EM LOCAL COM BAIXO NÍVEL DE INTERFERÊNCIAS - FORNECIMENTO E ASSENTAMENTO. AF_12/2015 | C124: M | D124: 544,73
A125: 92842 | B125: ASSENTAMENTO DE TUBO DE CONCRETO PARA REDES COLETORAS DE ESGOTO SANITÁRIO, DIÂMETRO DE 700 MM, JUNTA ELÁSTICA, INSTALADO EM LOCAL COM BAIXO NÍVEL DE INTERFERÊNCIAS (NÃO INCLUI FORNECIMENTO). AF_12/2015 | C125: M | D125: 16,20
A126: 92843 | B126: TUBO DE CONCRETO PARA REDES COLETORAS DE ESGOTO SANITÁRIO, DIÂMETRO DE 800 MM, JUNTA ELÁSTICA, INSTALADO EM LOCAL COM BAIXO NÍVEL DE INTERFERÊNCIAS - FORNECIMENTO E ASSENTAMENTO. AF_12/2015 | C126: M | D126: 564,32
A127: 92844 | B127: ASSENTAMENTO DE TUBO DE CONCRETO PARA REDES COLETORAS DE ESGOTO SANITÁRIO, DIÂMETRO DE 800 MM, JUNTA ELÁSTICA, INSTALADO EM LOCAL COM BAIXO NÍVEL DE INTERFERÊNCIAS (NÃO INCLUI FORNECIMENTO). AF_12/2015 | C127: M | D127: 18,42
A128: 92845 | B128: TUBO DE CONCRETO PARA REDES COLETORAS DE ESGOTO SANITÁRIO, DIÂMETRO DE 900 MM, JUNTA ELÁSTICA, INSTALADO EM LOCAL COM BAIXO NÍVEL DE INTERFERÊNCIAS - FORNECIMENTO E ASSENTAMENTO. AF_12/2015 | C128: M | D128: 835,88
A129: 92846 | B129: ASSENTAMENTO DE TUBO DE CONCRETO PARA REDES COLETORAS DE ESGOTO SANITÁRIO, DIÂMETRO DE 900 MM, JUNTA ELÁSTICA, INSTALADO EM LOCAL COM BAIXO NÍVEL DE INTERFERÊNCIAS (NÃO INCLUI FORNECIMENTO). AF_12/2015 | C129: M | D129: 20,41
A130: 92847 | B130: TUBO DE CONCRETO PARA REDES COLETORAS DE ESGOTO SANITÁRIO, DIÂMETRO DE 1000 MM, JUNTA ELÁSTICA, INSTALADO EM LOCAL COM BAIXO NÍVEL DE INTERFERÊNCIAS - FORNECIMENTO E ASSENTAMENTO. AF_12/2015 | C130: M | D130: 859,54
A131: 92848 | B131: ASSENTAMENTO DE TUBO DE CONCRETO PARA REDES COLETORAS DE ESGOTO SANITÁRIO, DIÂMETRO DE 1000 MM, JUNTA ELÁSTICA, INSTALADO EM LOCAL COM BAIXO NÍVEL DE INTERFERÊNCIAS (NÃO INCLUI FORNECIMENTO). AF_12/2015 | C131: M | D131: 22,65
A132: 92849 | B132: TUBO DE CONCRETO PARA REDES COLETORAS DE ESGOTO SANITÁRIO, DIÂMETRO DE 300 MM, JUNTA ELÁSTICA, INSTALADO EM LOCAL COM ALTO NÍVEL DE INTERFERÊNCIAS - FORNECIMENTO E ASSENTAMENTO. AF_12/2015 | C132: M | D132: 191,61
A133: 92850 | B133: ASSENTAMENTO DE TUBO DE CONCRETO PARA REDES COLETORAS DE ESGOTO SANITÁRIO, DIÂMETRO DE 300 MM, JUNTA ELÁSTICA, INSTALADO EM LOCAL COM ALTO NÍVEL DE INTERFERÊNCIAS (NÃO INCLUI FORNECIMENTO). AF_12/2015 | C133: M | D133: 14,78
A134: 92851 | B134: TUBO DE CONCRETO PARA REDES COLETORAS DE ESGOTO SANITÁRIO, DIÂMETRO DE 400 MM, JUNTA ELÁSTICA, INSTALADO EM LOCAL COM ALTO NÍVEL DE INTERFERÊNCIAS - FORNECIMENTO E ASSENTAMENTO. AF_12/2015 | C134: M | D134: 202,10
A135: 92852 | B135: ASSENTAMENTO DE TUBO DE CONCRETO PARA REDES COLETORAS DE ESGOTO SANITÁRIO, DIÂMETRO DE 400 MM, JUNTA ELÁSTICA, INSTALADO EM LOCAL COM ALTO NÍVEL DE INTERFERÊNCIAS (NÃO INCLUI FORNECIMENTO). AF_12/2015 | C135: M | D135: 18,66
A136: 92853 | B136: TUBO DE CONCRETO PARA REDES COLETORAS DE ESGOTO SANITÁRIO, DIÂMETRO DE 500 MM, JUNTA ELÁSTICA, INSTALADO EM LOCAL COM ALTO NÍVEL DE INTERFERÊNCIAS - FORNECIMENTO E ASSENTAMENTO. AF_12/2015 | C136: M | D136: 352,47
A137: 92854 | B137: ASSENTAMENTO DE TUBO DE CONCRETO PARA REDES COLETORAS DE ESGOTO SANITÁRIO, DIÂMETRO DE 500 MM, JUNTA ELÁSTICA, INSTALADO EM LOCAL COM ALTO NÍVEL DE INTERFERÊNCIAS (NÃO INCLUI FORNECIMENTO). AF_12/2015 | C137: M | D137: 22,73
A138: 92855 | B138: TUBO DE CONCRETO PARA REDES COLETORAS DE ESGOTO SANITÁRIO, DIÂMETRO DE 600 MM, JUNTA ELÁSTICA, INSTALADO EM LOCAL COM ALTO NÍVEL DE INTERFERÊNCIAS - FORNECIMENTO E ASSENTAMENTO. AF_12/2015 | C138: M | D138: 430,67
A139: 92856 | B139: ASSENTAMENTO DE TUBO DE CONCRETO PARA REDES COLETORAS DE ESGOTO SANITÁRIO, DIÂMETRO DE 600 MM, JUNTA ELÁSTICA, INSTALADO EM LOCAL COM ALTO NÍVEL DE INTERFERÊNCIAS (NÃO INCLUI FORNECIMENTO). AF_12/2015 | C139: M | D139: 26,79
A140: 92857 | B140: TUBO DE CONCRETO PARA REDES COLETORAS DE ESGOTO SANITÁRIO, DIÂMETRO DE 700 MM, JUNTA ELÁSTICA, INSTALADO EM LOCAL COM ALTO NÍVEL DE INTERFERÊNCIAS - FORNECIMENTO E ASSENTAMENTO. AF_12/2015 | C140: M | D140: 559,33
A141: 92858 | B141: ASSENTAMENTO DE TUBO DE CONCRETO PARA REDES COLETORAS DE ESGOTO SANITÁRIO, DIÂMETRO DE 700 MM, JUNTA ELÁSTICA, INSTALADO EM LOCAL COM ALTO NÍVEL DE INTERFERÊNCIAS (NÃO INCLUI FORNECIMENTO). AF_12/2015 | C141: M | D141: 30,65
A142: 92859 | B142: TUBO DE CONCRETO PARA REDES COLETORAS DE ESGOTO SANITÁRIO, DIÂMETRO DE 800 MM, JUNTA ELÁSTICA, INSTALADO EM LOCAL COM ALTO NÍVEL DE INTERFERÊNCIAS - FORNECIMENTO E ASSENTAMENTO. AF_12/2015 | C142: M | D142: 580,71
A143: 92860 | B143: ASSENTAMENTO DE TUBO DE CONCRETO PARA REDES COLETORAS DE ESGOTO SANITÁRIO, DIÂMETRO DE 800 MM, JUNTA ELÁSTICA, INSTALADO EM LOCAL COM ALTO NÍVEL DE INTERFERÊNCIAS (NÃO INCLUI FORNECIMENTO). AF_12/2015 | C143: M | D143: 34,81
A144: 92861 | B144: TUBO DE CONCRETO PARA REDES COLETORAS DE ESGOTO SANITÁRIO, DIÂMETRO DE 900 MM, JUNTA ELÁSTICA, INSTALADO EM LOCAL COM ALTO NÍVEL DE INTERFERÊNCIAS - FORNECIMENTO E ASSENTAMENTO. AF_12/2015 | C144: M | D144: 854,31
A145: 92862 | B145: ASSENTAMENTO DE TUBO DE CONCRETO PARA REDES COLETORAS DE ESGOTO SANITÁRIO, DIÂMETRO DE 900 MM, JUNTA ELÁSTICA, INSTALADO EM LOCAL COM ALTO NÍVEL DE INTERFERÊNCIAS (NÃO INCLUI FORNECIMENTO). AF_12/2015 | C145: M | D145: 38,84
A146: 92863 | B146: TUBO DE CONCRETO PARA REDES COLETORAS DE ESGOTO SANITÁRIO, DIÂMETRO DE 1000 MM, JUNTA ELÁSTICA, INSTALADO EM LOCAL COM ALTO NÍVEL DE INTERFERÊNCIAS - FORNECIMENTO E ASSENTAMENTO. AF_12/2015 | C146: M | D146: 880,02
A147: 92864 | B147: ASSENTAMENTO DE TUBO DE CONCRETO PARA REDES COLETORAS DE ESGOTO SANITÁRIO, DIÂMETRO DE 1000 MM, JUNTA ELÁSTICA, INSTALADO EM LOCAL COM ALTO NÍVEL DE INTERFERÊNCIAS (NÃO INCLUI FORNECIMENTO). AF_12/2015 | C147: M | D147: 42,92
A148: 92210 | B148: TUBO DE CONCRETO PARA REDES COLETORAS DE ÁGUAS PLUVIAIS, DIÂMETRO DE 400 MM, JUNTA RÍGIDA, INSTALADO EM LOCAL COM BAIXO NÍVEL DE INTERFERÊNCIAS - FORNECIMENTO E ASSENTAMENTO. AF_12/2015 | C148: M | D148: 149,05
A149: 92211 | B149: TUBO DE CONCRETO PARA REDES COLETORAS DE ÁGUAS PLUVIAIS, DIÂMETRO DE 500 MM, JUNTA RÍGIDA, INSTALADO EM LOCAL COM BAIXO NÍVEL DE INTERFERÊNCIAS - FORNECIMENTO E ASSENTAMENTO. AF_12/2015 | C149: M | D149: 179,15
A150: 92212 | B150: TUBO DE CONCRETO PARA REDES COLETORAS DE ÁGUAS PLUVIAIS, DIÂMETRO DE 600 MM, JUNTA RÍGIDA, INSTALADO EM LOCAL COM BAIXO NÍVEL DE INTERFERÊNCIAS - FORNECIMENTO E ASSENTAMENTO. AF_12/2015 | C150: M | D150: 266,55
A151: 92213 | B151: TUBO DE CONCRETO PARA REDES COLETORAS DE ÁGUAS PLUVIAIS, DIÂMETRO DE 700 MM, JUNTA RÍGIDA, INSTALADO EM LOCAL COM BAIXO NÍVEL DE INTERFERÊNCIAS - FORNECIMENTO E ASSENTAMENTO. AF_12/2015 | C151: M | D151: 349,90
A152: 92214 | B152: TUBO DE CONCRETO PARA REDES COLETORAS DE ÁGUAS PLUVIAIS, DIÂMETRO DE 800 MM, JUNTA RÍGIDA, INSTALADO EM LOCAL COM BAIXO NÍVEL DE INTERFERÊNCIAS - FORNECIMENTO E ASSENTAMENTO. AF_12/2015 | C152: M | D152: 422,71
A153: 92215 | B153: TUBO DE CONCRETO PARA REDES COLETORAS DE ÁGUAS PLUVIAIS, DIÂMETRO DE 900 MM, JUNTA RÍGIDA, INSTALADO EM LOCAL COM BAIXO NÍVEL DE INTERFERÊNCIAS - FORNECIMENTO E ASSENTAMENTO. AF_12/2015 | C153: M | D153: 485,51
A154: 92216 | B154: TUBO DE CONCRETO PARA REDES COLETORAS DE ÁGUAS PLUVIAIS, DIÂMETRO DE 1000 MM, JUNTA RÍGIDA, INSTALADO EM LOCAL COM BAIXO NÍVEL DE INTERFERÊNCIAS - FORNECIMENTO E ASSENTAMENTO. AF_12/2015 | C154: M | D154: 508,23
A155: 92219 | B155: TUBO DE CONCRETO PARA REDES COLETORAS DE ÁGUAS PLUVIAIS, DIÂMETRO DE 400 MM, JUNTA RÍGIDA, INSTALADO EM LOCAL COM ALTO NÍVEL DE INTERFERÊNCIAS - FORNECIMENTO E ASSENTAMENTO. AF_12/2015 | C155: M | D155: 157,73
A156: 92220 | B156: TUBO DE CONCRETO PARA REDES COLETORAS DE ÁGUAS PLUVIAIS, DIÂMETRO DE 500 MM, JUNTA RÍGIDA, INSTALADO EM LOCAL COM ALTO NÍVEL DE INTERFERÊNCIAS - FORNECIMENTO E ASSENTAMENTO. AF_12/2015 | C156: M | D156: 189,91
A157: 92221 | B157: TUBO DE CONCRETO PARA REDES COLETORAS DE ÁGUAS PLUVIAIS, DIÂMETRO DE 600 MM, JUNTA RÍGIDA, INSTALADO EM LOCAL COM ALTO NÍVEL DE INTERFERÊNCIAS - FORNECIMENTO E ASSENTAMENTO. AF_12/2015 | C157: M | D157: 279,15
A158: 92222 | B158: TUBO DE CONCRETO PARA REDES COLETORAS DE ÁGUAS PLUVIAIS, DIÂMETRO DE 700 MM, JUNTA RÍGIDA, INSTALADO EM LOCAL COM ALTO NÍVEL DE INTERFERÊNCIAS - FORNECIMENTO E ASSENTAMENTO. AF_12/2015 | C158: M | D158: 364,55
A159: 92223 | B159: TUBO DE CONCRETO PARA REDES COLETORAS DE ÁGUAS PLUVIAIS, DIÂMETRO DE 800 MM, JUNTA RÍGIDA, INSTALADO EM LOCAL COM ALTO NÍVEL DE INTERFERÊNCIAS - FORNECIMENTO E ASSENTAMENTO. AF_12/2015 | C159: M | D159: 439,10
A160: 92224 | B160: TUBO DE CONCRETO PARA REDES COLETORAS DE ÁGUAS PLUVIAIS, DIÂMETRO DE 900 MM, JUNTA RÍGIDA, INSTALADO EM LOCAL COM ALTO NÍVEL DE INTERFERÊNCIAS - FORNECIMENTO E ASSENTAMENTO. AF_12/2015 | C160: M | D160: 503,70
A161: 92226 | B161: TUBO DE CONCRETO PARA REDES COLETORAS DE ÁGUAS PLUVIAIS, DIÂMETRO DE 1000 MM, JUNTA RÍGIDA, INSTALADO EM LOCAL COM ALTO NÍVEL DE INTERFERÊNCIAS - FORNECIMENTO E ASSENTAMENTO. AF_12/2015 | C161: M | D161: 528,57
A162: 92808 | B162: ASSENTAMENTO DE TUBO DE CONCRETO PARA REDES COLETORAS DE ÁGUAS PLUVIAIS, DIÂMETRO DE 300 MM, JUNTA RÍGIDA, INSTALADO EM LOCAL COM BAIXO NÍVEL DE INTERFERÊNCIAS (NÃO INCLUI FORNECIMENTO). AF_12/2015 | C162: M | D162: 35,25
A163: 92809 | B163: ASSENTAMENTO DE TUBO DE CONCRETO PARA REDES COLETORAS DE ÁGUAS PLUVIAIS, DIÂMETRO DE 400 MM, JUNTA RÍGIDA, INSTALADO EM LOCAL COM BAIXO NÍVEL DE INTERFERÊNCIAS (NÃO INCLUI FORNECIMENTO). AF_12/2015 | C163: M | D163: 45,26
A164: 92810 | B164: ASSENTAMENTO DE TUBO DE CONCRETO PARA REDES COLETORAS DE ÁGUAS PLUVIAIS, DIÂMETRO DE 500 MM, JUNTA RÍGIDA, INSTALADO EM LOCAL COM BAIXO NÍVEL DE INTERFERÊNCIAS (NÃO INCLUI FORNECIMENTO). AF_12/2015 | C164: M | D164: 55,10
A165: 92811 | B165: ASSENTAMENTO DE TUBO DE CONCRETO PARA REDES COLETORAS DE ÁGUAS PLUVIAIS, DIÂMETRO DE 600 MM, JUNTA RÍGIDA, INSTALADO EM LOCAL COM BAIXO NÍVEL DE INTERFERÊNCIAS (NÃO INCLUI FORNECIMENTO). AF_12/2015 | C165: M | D165: 65,70
A166: 92812 | B166: ASSENTAMENTO DE TUBO DE CONCRETO PARA REDES COLETORAS DE ÁGUAS PLUVIAIS, DIÂMETRO DE 700 MM, JUNTA RÍGIDA, INSTALADO EM LOCAL COM BAIXO NÍVEL DE INTERFERÊNCIAS (NÃO INCLUI FORNECIMENTO). AF_12/2015 | C166: M | D166: 76,15
A167: 92813 | B167: ASSENTAMENTO DE TUBO DE CONCRETO PARA REDES COLETORAS DE ÁGUAS PLUVIAIS, DIÂMETRO DE 800 MM, JUNTA RÍGIDA, INSTALADO EM LOCAL COM BAIXO NÍVEL DE INTERFERÊNCIAS (NÃO INCLUI FORNECIMENTO). AF_12/2015 | C167: M | D167: 88,53
A168: 92814 | B168: ASSENTAMENTO DE TUBO DE CONCRETO PARA REDES COLETORAS DE ÁGUAS PLUVIAIS, DIÂMETRO DE 900 MM, JUNTA RÍGIDA, INSTALADO EM LOCAL COM BAIXO NÍVEL DE INTERFERÊNCIAS (NÃO INCLUI FORNECIMENTO). AF_12/2015 | C168: M | D168: 101,54
A169: 92815 | B169: ASSENTAMENTO DE TUBO DE CONCRETO PARA REDES COLETORAS DE ÁGUAS PLUVIAIS, DIÂMETRO DE 1000 MM, JUNTA RÍGIDA, INSTALADO EM LOCAL COM BAIXO NÍVEL DE INTERFERÊNCIAS (NÃO INCLUI FORNECIMENTO). AF_12/2015 | C169: M | D169: 116,67
A170: 92816 | B170: TUBO DE CONCRETO PARA REDES COLETORAS DE ÁGUAS PLUVIAIS, DIÂMETRO DE 1200 MM, JUNTA RÍGIDA, INSTALADO EM LOCAL COM BAIXO NÍVEL DE INTERFERÊNCIAS - FORNECIMENTO E ASSENTAMENTO. AF_12/2015 | C170: M | D170: 730,81
A171: 92817 | B171: ASSENTAMENTO DE TUBO DE CONCRETO PARA REDES COLETORAS DE ÁGUAS PLUVIAIS, DIÂMETRO DE 1200 MM, JUNTA RÍGIDA, INSTALADO EM LOCAL COM BAIXO NÍVEL DE INTERFERÊNCIAS (NÃO INCLUI FORNECIMENTO). AF_12/2015 | C171: M | D171: 145,99
A172: 92818 | B172: TUBO DE CONCRETO PARA REDES COLETORAS DE ÁGUAS PLUVIAIS, DIÂMETRO DE 1500 MM, JUNTA RÍGIDA, INSTALADO EM LOCAL COM BAIXO NÍVEL DE INTERFERÊNCIAS - FORNECIMENTO E ASSENTAMENTO. AF_12/2015 | C172: M | D172: 1.043,77
A173: 92819 | B173: ASSENTAMENTO DE TUBO DE CONCRETO PARA REDES COLETORAS DE ÁGUAS PLUVIAIS, DIÂMETRO DE 1500 MM, JUNTA RÍGIDA, INSTALADO EM LOCAL COM BAIXO NÍVEL DE INTERFERÊNCIAS (NÃO INCLUI FORNECIMENTO). AF_12/2015 | C173: M | D173: 196,50
A174: 92820 | B174: ASSENTAMENTO DE TUBO DE CONCRETO PARA REDES COLETORAS DE ÁGUAS PLUVIAIS, DIÂMETRO DE 300 MM, JUNTA RÍGIDA, INSTALADO EM LOCAL COM ALTO NÍVEL DE INTERFERÊNCIAS (NÃO INCLUI FORNECIMENTO). AF_12/2015 | C174: M | D174: 42,03
A175: 92821 | B175: ASSENTAMENTO DE TUBO DE CONCRETO PARA REDES COLETORAS DE ÁGUAS PLUVIAIS, DIÂMETRO DE 400 MM, JUNTA RÍGIDA, INSTALADO EM LOCAL COM ALTO NÍVEL DE INTERFERÊNCIAS (NÃO INCLUI FORNECIMENTO). AF_12/2015 | C175: M | D175: 53,94
A176: 92822 | B176: ASSENTAMENTO DE TUBO DE CONCRETO PARA REDES COLETORAS DE ÁGUAS PLUVIAIS, DIÂMETRO DE 500 MM, JUNTA RÍGIDA, INSTALADO EM LOCAL COM ALTO NÍVEL DE INTERFERÊNCIAS (NÃO INCLUI FORNECIMENTO). AF_12/2015 | C176: M | D176: 65,86
A177: 92824 | B177: ASSENTAMENTO DE TUBO DE CONCRETO PARA REDES COLETORAS DE ÁGUAS PLUVIAIS, DIÂMETRO DE 600 MM, JUNTA RÍGIDA, INSTALADO EM LOCAL COM ALTO NÍVEL DE INTERFERÊNCIAS (NÃO INCLUI FORNECIMENTO). AF_12/2015 | C177: M | D177: 78,30
A178: 92825 | B178: ASSENTAMENTO DE TUBO DE CONCRETO PARA REDES COLETORAS DE ÁGUAS PLUVIAIS, DIÂMETRO DE 700 MM, JUNTA RÍGIDA, INSTALADO EM LOCAL COM ALTO NÍVEL DE INTERFERÊNCIAS (NÃO INCLUI FORNECIMENTO). AF_12/2015 | C178: M | D178: 90,80
A179: 92826 | B179: ASSENTAMENTO DE TUBO DE CONCRETO PARA REDES COLETORAS DE ÁGUAS PLUVIAIS, DIÂMETRO DE 800 MM, JUNTA RÍGIDA, INSTALADO EM LOCAL COM ALTO NÍVEL DE INTERFERÊNCIAS (NÃO INCLUI FORNECIMENTO). AF_12/2015 | C179: M | D179: 104,92
A180: 92827 | B180: ASSENTAMENTO DE TUBO DE CONCRETO PARA REDES COLETORAS DE ÁGUAS PLUVIAIS, DIÂMETRO DE 900 MM, JUNTA RÍGIDA, INSTALADO EM LOCAL COM ALTO NÍVEL DE INTERFERÊNCIAS (NÃO INCLUI FORNECIMENTO). AF_12/2015 | C180: M | D180: 119,73
A181: 92828 | B181: ASSENTAMENTO DE TUBO DE CONCRETO PARA REDES COLETORAS DE ÁGUAS PLUVIAIS, DIÂMETRO DE 1000 MM, JUNTA RÍGIDA, INSTALADO EM LOCAL COM ALTO NÍVEL DE INTERFERÊNCIAS (NÃO INCLUI FORNECIMENTO). AF_12/2015 | C181: M | D181: 137,01
A182: 92829 | B182: TUBO DE CONCRETO PARA REDES COLETORAS DE ÁGUAS PLUVIAIS, DIÂMETRO DE 1200 MM, JUNTA RÍGIDA, INSTALADO EM LOCAL COM ALTO NÍVEL DE INTERFERÊNCIAS - FORNECIMENTO E ASSENTAMENTO. AF_12/2015 | C182: M | D182: 754,79
A183: 92830 | B183: ASSENTAMENTO DE TUBO DE CONCRETO PARA REDES COLETORAS DE ÁGUAS PLUVIAIS, DIÂMETRO DE 1200 MM, JUNTA RÍGIDA, INSTALADO EM LOCAL COM ALTO NÍVEL DE INTERFERÊNCIAS (NÃO INCLUI FORNECIMENTO). AF_12/2015 | C183: M | D183: 169,97
A184: 92831 | B184: TUBO DE CONCRETO PARA REDES COLETORAS DE ÁGUAS PLUVIAIS, DIÂMETRO DE 1500 MM, JUNTA RÍGIDA, INSTALADO EM LOCAL COM ALTO NÍVEL DE INTERFERÊNCIAS - FORNECIMENTO E ASSENTAMENTO. AF_12/2015 | C184: M | D184: 1.073,22
A185: 92832 | B185: ASSENTAMENTO DE TUBO DE CONCRETO PARA REDES COLETORAS DE ÁGUAS PLUVIAIS, DIÂMETRO DE 1500 MM, JUNTA RÍGIDA, INSTALADO EM LOCAL COM ALTO NÍVEL DE INTERFERÊNCIAS (NÃO INCLUI FORNECIMENTO). AF_12/2015 | C185: M | D185: 225,95
A186: 95565 | B186: TUBO DE CONCRETO PARA REDES COLETORAS DE ÁGUAS PLUVIAIS, DIÂMETRO DE 300MM, JUNTA RÍGIDA, INSTALADO EM LOCAL COM BAIXO NÍVEL DE INTERFERÊNCIAS - FORNECIMENTO E ASSENTAMENTO. AF_12/2015 | C186: M | D186: 127,57
A187: 95566 | B187: TUBO DE CONCRETO PARA REDES COLETORAS DE ÁGUAS PLUVIAIS, DIÂMETRO DE 300MM, JUNTA RÍGIDA, INSTALADO EM LOCAL COM ALTO NÍVEL DE INTERFERÊNCIAS - FORNECIMENTO E ASSENTAMENTO. AF_12/2015 | C187: M | D187: 134,42
A188: 95567 | B188: TUBO DE CONCRETO (SIMPLES) PARA REDES COLETORAS DE ÁGUAS PLUVIAIS, DIÂMETRO DE 300 MM, JUNTA RÍGIDA, INSTALADO EM LOCAL COM BAIXO NÍVEL DE INTERFERÊNCIAS - FORNECIMENTO E ASSENTAMENTO. AF_12/2015 | C188: M | D188: 70,62
A189: 95568 | B189: TUBO DE CONCRETO (SIMPLES) PARA REDES COLETORAS DE ÁGUAS PLUVIAIS, DIÂMETRO DE 400 MM, JUNTA RÍGIDA, INSTALADO EM LOCAL COM BAIXO NÍVEL DE INTERFERÊNCIAS - FORNECIMENTO E ASSENTAMENTO. AF_12/2015 | C189: M | D189: 87,08
A190: 95569 | B190: TUBO DE CONCRETO (SIMPLES) PARA REDES COLETORAS DE ÁGUAS PLUVIAIS, DIÂMETRO DE 500 MM, JUNTA RÍGIDA, INSTALADO EM LOCAL COM BAIXO NÍVEL DE INTERFERÊNCIAS - FORNECIMENTO E ASSENTAMENTO. AF_12/2015 | C190: M | D190: 117,23
A191: 95570 | B191: TUBO DE CONCRETO (SIMPLES) PARA REDES COLETORAS DE ÁGUAS PLUVIAIS, DIÂMETRO DE 300 MM, JUNTA RÍGIDA, INSTALADO EM LOCAL COM ALTO NÍVEL DE INTERFERÊNCIAS - FORNECIMENTO E ASSENTAMENTO. AF_12/2015 | C191: M | D191: 77,47
A192: 95571 | B192: TUBO DE CONCRETO (SIMPLES) PARA REDES COLETORAS DE ÁGUAS PLUVIAIS, DIÂMETRO DE 400 MM, JUNTA RÍGIDA, INSTALADO EM LOCAL COM ALTO NÍVEL DE INTERFERÊNCIAS - FORNECIMENTO E ASSENTAMENTO. AF_12/2015 | C192: M | D192: 95,85
A193: 95572 | B193: TUBO DE CONCRETO (SIMPLES) PARA REDES COLETORAS DE ÁGUAS PLUVIAIS, DIÂMETRO DE 500 MM, JUNTA RÍGIDA, INSTALADO EM LOCAL COM ALTO NÍVEL DE INTERFERÊNCIAS - FORNECIMENTO E ASSENTAMENTO. AF_12/2015 | C193: M | D193: 128,09
A194: 97127 | B194: ASSENTAMENTO DE TUBO DE PVC DEFOFO OU PRFV OU RPVC PARA REDE DE ÁGUA, DN 150 MM, JUNTA ELÁSTICA INTEGRADA, INSTALADO EM LOCAL COM NÍVEL ALTO DE INTERFERÊNCIAS (NÃO INCLUI FORNECIMENTO). AF_11/2017 | C194: M | D194: 4,48
A195: 97128 | B195: ASSENTAMENTO DE TUBO DE PVC DEFOFO OU PRFV OU RPVC PARA REDE DE ÁGUA, DN 200 MM, JUNTA ELÁSTICA INTEGRADA, INSTALADO EM LOCAL COM NÍVEL ALTO DE INTERFERÊNCIAS (NÃO INCLUI FORNECIMENTO). AF_11/2017 | C195: M | D195: 8,97
A196: 97129 | B196: ASSENTAMENTO DE TUBO DE PVC DEFOFO OU PRFV OU RPVC PARA REDE DE ÁGUA, DN 250 MM, JUNTA ELÁSTICA INTEGRADA, INSTALADO EM LOCAL COM NÍVEL ALTO DE INTERFERÊNCIAS (NÃO INCLUI FORNECIMENTO). AF_11/2017 | C196: M | D196: 11,03
A197: 97130 | B197: ASSENTAMENTO DE TUBO DE PVC DEFOFO OU PRFV OU RPVC PARA REDE DE ÁGUA, DN 300 MM, JUNTA ELÁSTICA INTEGRADA, INSTALADO EM LOCAL COM NÍVEL ALTO DE INTERFERÊNCIAS (NÃO INCLUI FORNECIMENTO). AF_11/2017 | C197: M | D197: 13,09
A198: 97131 | B198: ASSENTAMENTO DE TUBO DE PVC DEFOFO OU PRFV OU RPVC PARA REDE DE ÁGUA, DN 350 MM, JUNTA ELÁSTICA INTEGRADA, INSTALADO EM LOCAL COM NÍVEL ALTO DE INTERFERÊNCIAS (NÃO INCLUI FORNECIMENTO). AF_11/2017 | C198: M | D198: 15,15
A199: 97132 | B199: ASSENTAMENTO DE TUBO DE PVC DEFOFO OU PRFV OU RPVC PARA REDE DE ÁGUA, DN 400 MM, JUNTA ELÁSTICA INTEGRADA, INSTALADO EM LOCAL COM NÍVEL ALTO DE INTERFERÊNCIAS (NÃO INCLUI FORNECIMENTO). AF_11/2017 | C199: M | D199: 17,20
A200: 97133 | B200: ASSENTAMENTO DE TUBO DE PVC DEFOFO OU PRFV OU RPVC PARA REDE DE ÁGUA, DN 500 MM, JUNTA ELÁSTICA INTEGRADA, INSTALADO EM LOCAL COM NÍVEL ALTO DE INTERFERÊNCIAS (NÃO INCLUI FORNECIMENTO). AF_11/2017 | C200: M | D200: 21,32
... 12205 more rows
